Workbook

Sheet Exercise with History Completed
C2: Year | I2: 2007-01-01 | J2: =EDATE(I2,3) -> 2007-04-01 | K2: =EDATE(J2,3) -> 2007-07-01 | L2: 2007-10-01 | M2: 2008-01-01 | N2: 2008-04-01 | O2: 2008-07-01 | P2: 2008-10-01 | Q2: 2009-01-01 | R2: 2009-04-01 | S2: 2009-07-01 | T2: 2009-10-01 | U2: 2010-01-01 | V2: 2010-04-01 | W2: 2010-07-01 | X2: 2010-10-01 | Y2: 2011-01-01 | Z2: 2011-04-01 | AA2: 2011-07-01 | AB2: 2011-10-01 | AC2: 2012-01-01 | AD2: 2012-04-01 | AE2: 2012-07-01 | AF2: 2012-10-01 | AG2: 2013-01-01 | AH2: 2013-04-01 | AI2: 2013-07-01 | AJ2: 2013-10-01 | AK2: 2014-01-01 | AL2: 2014-04-01 | AM2: 2014-07-01 | AN2: 2014-10-01 | AO2: 2015-01-01 | AP2: 2015-04-01 | AQ2: 2015-07-01 | AR2: 2015-10-01 | AS2: 2016-01-01 | AT2: 2016-04-01 | AU2: 2016-07-01 | AV2: 2016-10-01 | AW2: 2017-01-01 | AX2: 2017-04-01 | AY2: 2017-07-01 | AZ2: 2017-10-01 | BA2: 2018-01-01 | BB2: 2018-04-01 | BC2: 2018-07-01 | BD2: 2018-10-01 | BE2: 2019-01-01 | BF2: 2019-04-01 | BG2: 2019-07-01 | BH2: 2019-10-01 | BI2: 2020-01-01 | BJ2: 2020-04-01 | BK2: 2020-07-01 | BL2: 2020-10-01 | BM2: 2021-01-01 | BN2: 2021-04-01 | BO2: 2021-07-01 | BP2: 2021-10-01 | BQ2: 2022-01-01 | BR2: 2022-04-01 | BS2: 2022-07-01 | BT2: 2022-10-01 | BU2: 2023-01-01 | BV2: 2023-04-01 | BW2: =EDATE(BV2,3) -> 2023-07-01 | BX2: 2023-10-01
D3: Historic Switch | G3: 2014-10-01 | I3: =I2<=$G3 -> TRUE | J3: TRUE | K3: TRUE | L3: TRUE | M3: TRUE | N3: TRUE | O3: TRUE | P3: TRUE | Q3: TRUE | R3: TRUE | S3: TRUE | T3: TRUE | U3: TRUE | V3: TRUE | W3: TRUE | X3: TRUE | Y3: TRUE | Z3: TRUE | AA3: TRUE | AB3: TRUE | AC3: TRUE | AD3: TRUE | AE3: TRUE | AF3: TRUE | AG3: TRUE | AH3: TRUE | AI3: TRUE | AJ3: TRUE | AK3: TRUE | AL3: TRUE | AM3: TRUE | AN3: TRUE | AO3: =AO2<=$G3 -> FALSE | AP3: FALSE | AQ3: FALSE | AR3: FALSE | AS3: FALSE | AT3: FALSE | AU3: FALSE | AV3: FALSE | AW3: FALSE | AX3: FALSE | AY3: FALSE | AZ3: FALSE | BA3: FALSE | BB3: FALSE | BC3: FALSE | BD3: FALSE | BE3: FALSE | BF3: FALSE | BG3: FALSE | BH3: FALSE | BI3: FALSE | BJ3: FALSE | BK3: FALSE | BL3: FALSE | BM3: FALSE | BN3: FALSE | BO3: FALSE | BP3: FALSE | BQ3: FALSE | BR3: FALSE | BS3: FALSE | BT3: FALSE | BU3: =BU2<=$G3 -> FALSE | BV3: FALSE | BW3: FALSE | BX3: FALSE
D4: Valuation Switch
D5: Scenario Code | H5: 1
C7: History
D8: Balance Sheet
E9: Assets
F10: Cash | I10: 100 | J10: 83.31921014 | K10: 102.3500144 | L10: 102.3319531 | M10: 110.6524066 | N10: 120.0353793 | O10: 122.5990666 | P10: 129.3805378 | Q10: 92.04470843 | R10: 75.6983831 | S10: 65.59610706 | T10: 56.8153136 | U10: 59.82401291 | V10: 61.19889564 | W10: 66.94687258 | X10: 67.1037913 | Y10: 56.25523637 | Z10: 61.50160648 | AA10: 63.27887963 | AB10: 61.10362127 | AC10: 50.7505461 | AD10: 58.53995743 | AE10: 64.11631549 | AF10: 75.49685015 | AG10: 94.80644673 | AH10: 55.53524588 | AI10: 58.15561838 | AJ10: 55.84628812 | AK10: 63.81408997 | AL10: 52.81294309 | AM10: 60.64099871 | AN10: 60.62813564
F11: Accounts Receivable | I11: 75 | J11: 90.86908762 | K11: 68.98164799 | L11: 65.27589564 | M11: 77.83565979 | N11: 115.8770113 | O11: 113.864286 | P11: 120.9727273 | Q11: 70.5728618 | R11: 76.26667284 | S11: 63.77878184 | T11: 63.59195521 | U11: 55.8161784 | V11: 57.65537323 | W11: 51.39713746 | X11: 58.34207953 | Y11: 77.69182485 | Z11: 86.6073429 | AA11: 85.20348996 | AB11: 68.1943783 | AC11: 63.08510889 | AD11: 64.24474944 | AE11: 74.7141692 | AF11: 59.51799054 | AG11: 67.83038729 | AH11: 70.92819498 | AI11: 75.14607268 | AJ11: 57.12730865 | AK11: 61.15408281 | AL11: 45.62093012 | AM11: 51.41191837 | AN11: 63.02678635
F12: Net Plant | I12: 1000 | J12: 1042.488635 | K12: 1017.973219 | L12: 834.4004597 | M12: 682.1518176 | N12: 703.2098494 | O12: 617.6126687 | P12: 643.3487588 | Q12: 770.7677673 | R12: 937.7511641 | S12: 1085.609335 | T12: 1163.192077 | U12: 1110.429622 | V12: 1316.444556 | W12: 991.642544 | X12: 1121.504502 | Y12: 1424.160315 | Z12: 1341.748025 | AA12: 1454.311196 | AB12: 1573.238971 | AC12: 1264.240374 | AD12: 1285.498766 | AE12: 1402.916558 | AF12: 1365.211958 | AG12: 1248.127383 | AH12: 1116.067948 | AI12: 1117.269447 | AJ12: 1175.160449 | AK12: 1292.986033 | AL12: 1143.023379 | AM12: 1159.434507 | AN12: 1383.636506
F13: Total | I13: =SUM(I10:I12) -> 1175 | J13: =SUM(J10:J12) -> 1216.676933 | K13: 1189.304882 | L13: 1002.008309 | M13: 870.639884 | N13: 939.1222401 | O13: 854.0760213 | P13: 893.7020239 | Q13: 933.3853375 | R13: 1089.71622 | S13: 1214.984224 | T13: 1283.599346 | U13: 1226.069813 | V13: 1435.298825 | W13: 1109.986554 | X13: 1246.950373 | Y13: 1558.107376 | Z13: 1489.856974 | AA13: 1602.793566 | AB13: 1702.53697 | AC13: 1378.076029 | AD13: 1408.283473 | AE13: 1541.747042 | AF13: 1500.226799 | AG13: 1410.764217 | AH13: 1242.531388 | AI13: 1250.571138 | AJ13: 1288.134046 | AK13: 1417.954206 | AL13: 1241.457252 | AM13: 1271.487424 | AN13: 1507.291428
E15: Liabilities and Capital
F16: Debt | I16: =I13*0.4 -> 470 | J16: 450.3231381 | K16: 448.1292934 | L16: 374.6929651 | M16: 317.1216897 | N16: 329.2980915 | O16: 296.0846941 | P16: 309.0917186 | Q16: 345.1249903 | R16: 405.3798189 | S16: 460.482177 | T16: 488.0029562 | U16: 468.1014538 | V16: 551.0573807 | W16: 423.4357666 | X16: 475.4433174 | Y16: 592.1662205 | Z16: 561.2998524 | AA16: 607.0360304 | AB16: 653.7370367 | AC16: 525.9963682 | AD16: 537.6154893 | AE16: 586.8131492 | AF16: 576.2835233 | AG16: 537.1735319 | AH16: 468.6412774 | AI16: 470.170026 | AJ16: 492.4026948 | AK16: 542.7200492 | AL16: 478.3345287 | AM16: 488.0302023 | AN16: 577.7058565
F17: Equity | I17: =I13-I16 -> 705 | J17: =J13-J16 -> 766.3537947 | K17: 741.1755881 | L17: 627.3153434 | M17: 553.5181943 | N17: 609.8241486 | O17: 557.9913272 | P17: 584.6103053 | Q17: 588.2603472 | R17: 684.3364011 | S17: 754.5020474 | T17: 795.5963895 | U17: 757.9683591 | V17: 884.2414443 | W17: 686.5507874 | X17: 771.5070557 | Y17: 965.9411555 | Z17: 928.5571215 | AA17: 995.7575355 | AB17: 1048.799933 | AC17: 852.0796611 | AD17: 870.6679835 | AE17: 954.9338931 | AF17: 923.9432755 | AG17: 873.5906851 | AH17: 773.8901111 | AI17: 780.4011116 | AJ17: 795.7313508 | AK17: 875.2341567 | AL17: 763.1227232 | AM17: 783.4572218 | AN17: 929.5855712
F18: Total | I18: =SUM(I16:I17) -> 1175 | J18: =SUM(J16:J17) -> 1216.676933 | K18: 1189.304882 | L18: 1002.008309 | M18: 870.639884 | N18: 939.1222401 | O18: 854.0760213 | P18: 893.7020239 | Q18: 933.3853375 | R18: 1089.71622 | S18: 1214.984224 | T18: 1283.599346 | U18: 1226.069813 | V18: 1435.298825 | W18: 1109.986554 | X18: 1246.950373 | Y18: 1558.107376 | Z18: 1489.856974 | AA18: 1602.793566 | AB18: 1702.53697 | AC18: 1378.076029 | AD18: 1408.283473 | AE18: 1541.747042 | AF18: 1500.226799 | AG18: 1410.764217 | AH18: 1242.531388 | AI18: 1250.571138 | AJ18: 1288.134046 | AK18: 1417.954206 | AL18: 1241.457252 | AM18: 1271.487424 | AN18: 1507.291428
E20: Profit and Loss
F21: Revenues | I21: 300 | J21: 327.4763505 | K21: 287.9265919 | L21: 285.1035826 | M21: 339.3426392 | N21: 427.5080453 | O21: 467.457144 | P21: 499.8909092 | Q21: 290.2914472 | R21: 297.0666914 | S21: 279.1151273 | T21: 258.3678208 | U21: 211.2647136 | V21: 202.6214929 | W21: 217.5885498 | X21: 245.3683181 | Y21: 322.7672994 | Z21: 350.4293716 | AA21: 348.8139599 | AB21: 296.7775132 | AC21: 280.3404356 | AD21: 272.9789978 | AE21: 262.8566768 | AF21: 262.0719622 | AG21: 251.3215491 | AH21: 283.7127799 | AI21: 288.5842907 | AJ21: 236.5092346 | AK21: 252.6163312 | AL21: 214.4837205 | AM21: 185.6476735 | AN21: 216.1071454
F22: Depreciation | I22: 100 | J22: 107.2488635 | K22: 102.7973219 | L22: 78.44004597 | M22: 74.21518176 | N22: 74.32098494 | O22: 66.76126687 | P22: 58.33487588 | Q22: 82.07677673 | R22: 83.77511641 | S22: 111.5609335 | T22: 106.3192077 | U22: 119.0429622 | V22: 130.6444556 | W22: 95.1642544 | X22: 106.1504502 | Y22: 141.4160315 | Z22: 138.1748025 | AA22: 142.4311196 | AB22: 158.3238971 | AC22: 128.4240374 | AD22: 133.5498766 | AE22: 137.2916558 | AF22: 134.5211958 | AG22: 121.8127383 | AH22: 109.6067948 | AI22: 103.7269447 | AJ22: 124.5160449 | AK22: 125.2986033 | AL22: 107.3023379 | AM22: 123.9434507 | AN22: 144.3636506
F23: EBIT | I23: =I21-I22 -> 200 | J23: 223.227487 | K23: 186.12927 | L23: 201.6635366 | M23: 271.1274574 | N23: 357.1870604 | O23: 405.6958771 | P23: 435.5560333 | Q23: 213.2146705 | R23: 203.291575 | S23: 170.5541938 | T23: 142.0486132 | U23: 100.2217514 | V23: 70.97703732 | W23: 118.4242954 | X23: 133.2178679 | Y23: 180.3512679 | Z23: 216.2545691 | AA23: 203.3828402 | AB23: 139.4536161 | AC23: 153.9163981 | AD23: 144.4291212 | AE23: 122.565021 | AF23: 125.5507664 | AG23: 126.5088108 | AH23: 172.1059851 | AI23: 176.8573461 | AJ23: 118.9931897 | AK23: 123.3177279 | AL23: 100.1813826 | AM23: 69.70422279 | AN23: 77.74349482
F24: Interest Expense | I24: 23.5 | J24: 22.5161569 | K24: 22.40646467 | L24: 18.73464826 | M24: 15.85608448 | N24: 16.46490457 | O24: 14.80423471 | P24: 15.45458593 | Q24: 17.25624951 | R24: 20.26899094 | S24: 23.02410885 | T24: 24.40014781 | U24: 23.40507269 | V24: 27.55286904 | W24: 21.17178833 | X24: 23.77216587 | Y24: 29.60831102 | Z24: 28.06499262 | AA24: 30.35180152 | AB24: 32.68685184 | AC24: 26.29981841 | AD24: 26.88077447 | AE24: 29.34065746 | AF24: 28.81417617 | AG24: 26.8586766 | AH24: 23.43206387 | AI24: 23.5085013 | AJ24: 24.62013474 | AK24: 27.13600246 | AL24: 23.91672644 | AM24: 24.40151011 | AN24: 28.88529283
F25: Interest Income | I25: 1 | J25: 0.8331921014 | K25: 1.023500144 | L25: 1.023319531 | M25: 1.106524066 | N25: 1.200353793 | O25: 1.225990666 | P25: 1.293805378 | Q25: 0.9204470843 | R25: 0.756983831 | S25: 0.6559610706 | T25: 0.568153136 | U25: 0.5982401291 | V25: 0.6119889564 | W25: 0.6694687258 | X25: 0.671037913 | Y25: 0.5625523637 | Z25: 0.6150160648 | AA25: 0.6327887963 | AB25: 0.6110362127 | AC25: 0.507505461 | AD25: 0.5853995743 | AE25: 0.6411631549 | AF25: 0.7549685015 | AG25: 0.9480644673 | AH25: 0.5553524588 | AI25: 0.5815561838 | AJ25: 0.5584628812 | AK25: 0.6381408997 | AL25: 0.5281294309 | AM25: 0.6064099871 | AN25: 0.6062813564
F26: Net Income | I26: =I23-I24+I25 -> 177.5 | J26: 201.5445222 | K26: 164.7463055 | L26: 183.9522079 | M26: 256.377897 | N26: 341.9225096 | O26: 392.1176331 | P26: 421.3952528 | Q26: 196.878868 | R26: 183.7795679 | S26: 148.186046 | T26: 118.2166185 | U26: 77.41491889 | V26: 44.03615724 | W26: 97.92197583 | X26: 110.11674 | Y26: 151.3055092 | Z26: 188.8045926 | AA26: 173.6638275 | AB26: 107.3778005 | AC26: 128.1240852 | AD26: 118.1337463 | AE26: 93.86552674 | AF26: 97.49155869 | AG26: 100.5981987 | AH26: 149.2292737 | AI26: 153.930401 | AJ26: 94.93151786 | AK26: 96.81986637 | AL26: 76.79278559 | AM26: 45.90912267 | AN26: 49.46448335
E28: Cash Flow
F29: Capital Expenditure | I29: 130 | J29: 135.5235226 | K29: 132.3365185 | L29: 108.4720598 | M29: 88.67973629 | N29: 91.41728043 | O29: 80.28964693 | P29: 83.63533864 | Q29: 100.1998097 | R29: 121.9076513 | S29: 141.1292136 | T29: 151.21497 | U29: 144.3558508 | V29: 171.1377923 | W29: 128.9135307 | X29: 145.7955853 | Y29: 185.1408409 | Z29: 174.4272432 | AA29: 189.0604555 | AB29: 204.5210662 | AC29: 164.3512487 | AD29: 167.1148396 | AE29: 182.3791525 | AF29: 177.4775546 | AG29: 162.2565598 | AH29: 145.0888332 | AI29: 145.2450281 | AJ29: 152.7708583 | AK29: 168.0881843 | AL29: 148.5930392 | AM29: 150.7264859 | AN29: 179.8727457
F30: Dividends | I30: 88.75 | J30: 100.7722611 | K30: 82.37315275 | L30: 91.97610393 | M30: 128.1889485 | N30: 170.9612548 | O30: 196.0588166 | P30: 210.6976264 | Q30: 98.43943402 | R30: 91.88978393 | S30: 74.09302301 | T30: 59.10830924 | U30: 38.70745944 | V30: 22.01807862 | W30: 48.96098791 | X30: 55.05836998 | Y30: 75.65275462 | Z30: 94.4022963 | AA30: 86.83191375 | AB30: 53.68890026 | AC30: 64.0620426 | AD30: 59.06687314 | AE30: 46.93276337 | AF30: 48.74577934 | AG30: 50.29909936 | AH30: 74.61463687 | AI30: 76.96520048 | AJ30: 47.46575893 | AK30: 48.40993318 | AL30: 38.39639279 | AM30: 22.95456133 | AN30: 24.73224167
F31: Shares | I31: 100 | J31: 100 | K31: 100 | L31: 100 | M31: 100 | N31: 100 | O31: 100 | P31: 100 | Q31: 100 | R31: 100 | S31: 100 | T31: 100 | U31: 100 | V31: 100 | W31: 100 | X31: 100 | Y31: 100 | Z31: 100 | AA31: 100 | AB31: 100 | AC31: 100 | AD31: 100 | AE31: 100 | AF31: 100 | AG31: 100 | AH31: 100 | AI31: 100 | AJ31: 100 | AK31: 100 | AL31: 100 | AM31: 100 | AN31: 100
C33: Assumptions
D34: Operating
E35: Revenue Growth
F36: Historic | J36: =IF(J3,J21/I21-1) -> 0.0915878349 | K36: =IF(K3,K21/J21-1) -> -0.1207713426 | L36: -0.009804615001 | M36: 0.1902433358 | N36: 0.2598123431 | O36: 0.09344642539 | P36: 0.06938339824 | Q36: -0.4192904054 | R36: 0.02333945504 | S36: -0.06042940711 | T36: -0.07433243299 | U36: -0.1823102703 | V36: -0.04091180452 | W36: 0.07386707439 | X36: 0.1276710945 | Y36: 0.3154399958 | Z36: 0.08570283381 | AA36: -0.004609806946 | AB36: -0.1491810898 | AC36: -0.05538518551 | AD36: -0.02625892262 | AE36: -0.03708095145 | AF36: -0.00298533272 | AG36: -0.04102084377 | AH36: 0.1288836189 | AI36: 0.01717057233 | AJ36: -0.1804500723 | AK36: 0.06810345767 | AL36: -0.150950695 | AM36: -0.1344439891 | AN36: 0.1640713903 | AO36: FALSE | AP36: FALSE | AQ36: FALSE | AR36: FALSE | AS36: FALSE | AT36: FALSE | AU36: FALSE | AV36: FALSE | AW36: FALSE | AX36: FALSE | AY36: FALSE | AZ36: FALSE | BA36: FALSE | BB36: FALSE | BC36: FALSE | BD36: FALSE | BE36: FALSE | BF36: FALSE | BG36: FALSE | BH36: FALSE | BI36: FALSE | BJ36: FALSE | BK36: FALSE | BL36: FALSE | BM36: FALSE | BN36: FALSE | BO36: FALSE | BP36: FALSE | BQ36: FALSE | BR36: FALSE | BS36: FALSE | BT36: FALSE | BU36: FALSE | BV36: FALSE | BW36: =IF(BW3,BW21/BV21-1) -> FALSE | BX36: FALSE
F37: Base | I37: 0.03 | J37: 0.03 | K37: 0.05 | L37: 0.05 | M37: 0.05 | N37: 0.05 | O37: 0.05 | P37: 0.05 | Q37: 0.05 | R37: 0.05 | S37: 0.05 | T37: 0.05 | U37: 0.05 | V37: 0.05 | W37: 0.05 | X37: 0.05 | Y37: 0.05 | Z37: 0.05 | AA37: 0.05 | AB37: 0.05 | AC37: 0.05 | AD37: 0.05 | AE37: 0.05 | AF37: 0.05 | AG37: 0.05 | AH37: 0.05 | AI37: 0.05 | AJ37: 0.05 | AK37: 0.05 | AL37: 0.05 | AM37: 0.05 | AN37: 0.05 | AO37: 0.05 | AP37: 0.05 | AQ37: 0.05 | AR37: 0.05 | AS37: 0.05 | AT37: 0.045 | AU37: 0.045 | AV37: 0.045 | AW37: 0.045 | AX37: 0.042 | AY37: 0.042 | AZ37: 0.04 | BA37: 0.04 | BB37: 0.04 | BC37: 0.035 | BD37: 0.035 | BE37: 0.035 | BF37: 0.03 | BG37: 0.03 | BH37: 0.03 | BI37: 0.03 | BJ37: 0.03 | BK37: 0.03 | BL37: 0.03 | BM37: 0.03 | BN37: 0.03 | BO37: 0.03 | BP37: 0.03 | BQ37: 0.03 | BR37: 0.03 | BS37: 0.03 | BT37: 0.03 | BU37: 0.03 | BV37: 0.03 | BW37: 0.03 | BX37: 0.03
F38: Low | I38: 0.01 | J38: 0.01 | K38: 0.02 | L38: 0.02 | M38: 0.02 | N38: 0.02 | O38: 0.02 | P38: 0.02 | Q38: 0.02 | R38: 0.02 | S38: 0.02 | T38: 0.02 | U38: 0.02 | V38: 0.02 | W38: 0.02 | X38: 0.02 | Y38: 0.02 | Z38: 0.02 | AA38: 0.02 | AB38: 0.02 | AC38: 0.02 | AD38: 0.02 | AE38: 0.02 | AF38: 0.02 | AG38: 0.02 | AH38: 0.02 | AI38: 0.02 | AJ38: 0.02 | AK38: 0.02 | AL38: 0.02 | AM38: 0.02 | AN38: 0.02 | AO38: 0.02 | AP38: 0.02 | AQ38: 0.02 | AR38: 0.015 | AS38: 0.015 | AT38: 0.015 | AU38: 0.015 | AV38: 0.015 | AW38: 0.015 | AX38: 0.015 | AY38: 0.01 | AZ38: 0.01 | BA38: 0.01 | BB38: 0.01 | BC38: 0.01 | BD38: 0.01 | BE38: 0.01 | BF38: 0.01 | BG38: 0.01 | BH38: 0.01 | BI38: 0.01 | BJ38: 0.01 | BK38: 0.01 | BL38: 0.01 | BM38: 0.01 | BN38: 0.01 | BO38: 0.01 | BP38: 0.01 | BQ38: 0.01 | BR38: 0.01 | BS38: 0.01 | BT38: 0.01 | BU38: 0.01 | BV38: 0.01 | BW38: 0.01 | BX38: 0.01
B39: 0 | F39: High | I39: 0.05 | J39: 0.05 | K39: 0.08 | L39: 0.08 | M39: 0.08 | N39: 0.08 | O39: 0.08 | P39: 0.08 | Q39: 0.08 | R39: 0.08 | S39: 0.08 | T39: 0.08 | U39: 0.08 | V39: 0.08 | W39: 0.08 | X39: 0.08 | Y39: 0.08 | Z39: 0.08 | AA39: 0.08 | AB39: 0.08 | AC39: 0.08 | AD39: 0.08 | AE39: 0.08 | AF39: 0.08 | AG39: 0.08 | AH39: 0.08 | AI39: 0.08 | AJ39: 0.08 | AK39: 0.08 | AL39: 0.08 | AM39: 0.08 | AN39: 0.08 | AO39: 0.08 | AP39: 0.08 | AQ39: 0.076 | AR39: 0.076 | AS39: 0.076 | AT39: 0.076 | AU39: 0.076 | AV39: 0.076 | AW39: 0.05 | AX39: 0.05 | AY39: 0.05 | AZ39: 0.05 | BA39: 0.05 | BB39: 0.05 | BC39: 0.05 | BD39: 0.05 | BE39: 0.05 | BF39: 0.05 | BG39: 0.05 | BH39: 0.05 | BI39: 0.05 | BJ39: 0.05 | BK39: 0.05 | BL39: 0.05 | BM39: 0.05 | BN39: 0.05 | BO39: 0.05 | BP39: 0.05 | BQ39: 0.05 | BR39: 0.05 | BS39: 0.05 | BT39: 0.05 | BU39: 0.05 | BV39: 0.05 | BW39: 0.05 | BX39: 0.05
A40: TRUE | B40: =B39+A40 -> 1 | F40: =E35 -> Revenue Growth | G40: Scenario | H40: =H5 -> 1 | I40: =IF(I3,I36,INDEX(I37:I39,$H$40)) -> 0 | J40: 0.0915878349 | K40: -0.1207713426 | L40: -0.009804615001 | M40: 0.1902433358 | N40: 0.2598123431 | O40: 0.09344642539 | P40: 0.06938339824 | Q40: -0.4192904054 | R40: 0.02333945504 | S40: -0.06042940711 | T40: -0.07433243299 | U40: -0.1823102703 | V40: -0.04091180452 | W40: 0.07386707439 | X40: 0.1276710945 | Y40: 0.3154399958 | Z40: 0.08570283381 | AA40: -0.004609806946 | AB40: -0.1491810898 | AC40: -0.05538518551 | AD40: -0.02625892262 | AE40: -0.03708095145 | AF40: -0.00298533272 | AG40: -0.04102084377 | AH40: 0.1288836189 | AI40: 0.01717057233 | AJ40: -0.1804500723 | AK40: 0.06810345767 | AL40: -0.150950695 | AM40: -0.1344439891 | AN40: 0.1640713903 | AO40: =IF(AO3,AO36,INDEX(AO37:AO39,$H$40)) -> 0.05 | AP40: 0.05 | AQ40: 0.05 | AR40: 0.05 | AS40: 0.05 | AT40: 0.045 | AU40: 0.045 | AV40: 0.045 | AW40: 0.045 | AX40: 0.042 | AY40: 0.042 | AZ40: 0.04 | BA40: 0.04 | BB40: 0.04 | BC40: 0.035 | BD40: 0.035 | BE40: 0.035 | BF40: 0.03 | BG40: 0.03 | BH40: 0.03 | BI40: 0.03 | BJ40: 0.03 | BK40: 0.03 | BL40: 0.03 | BM40: 0.03 | BN40: 0.03 | BO40: 0.03 | BP40: 0.03 | BQ40: 0.03 | BR40: 0.03 | BS40: 0.03 | BT40: 0.03 | BU40: =IF(BU3,BU36,INDEX(BU37:BU39,$H$40)) -> 0.03 | BV40: 0.03 | BW40: 0.03 | BX40: 0.03
A41: FALSE | B41: =B40+A41 -> 1
A42: FALSE | B42: 1 | E42: Cap Exp to Sales
A43: FALSE | B43: 1 | F43: Historic | I43: =IF(I3,I29/I21) -> 0.4333333333 | J43: =IF(J3,J29/J21) -> 0.4138421671 | K43: 0.4596189522 | L43: 0.3804654392 | M43: 0.2613280091 | N43: 0.2138375673 | O43: 0.1717583055 | P43: 0.1673071806 | Q43: 0.3451696931 | R43: 0.4103713236 | S43: 0.5056308304 | T43: 0.5852701373 | U43: 0.683293714 | V43: 0.8446181588 | W43: 0.5924646808 | X43: 0.5941907513 | Y43: 0.5736047031 | Z43: 0.4977529206 | AA43: 0.5420094299 | AB43: 0.6891393622 | AC43: 0.586255951 | AD43: 0.612189366 | AE43: 0.6938349625 | AF43: 0.6772092409 | AG43: 0.6456133998 | AH43: 0.5113933649 | AI43: 0.5033019216 | AJ43: 0.6459403524 | AK43: 0.6653892228 | AL43: 0.6927940214 | AM43: 0.8118953665 | AN43: 0.8323313207 | AO43: FALSE | AP43: FALSE | AQ43: FALSE | AR43: FALSE | AS43: FALSE | AT43: FALSE | AU43: FALSE | AV43: FALSE | AW43: FALSE | AX43: FALSE | AY43: FALSE | AZ43: FALSE | BA43: FALSE | BB43: FALSE | BC43: FALSE | BD43: FALSE | BE43: FALSE | BF43: FALSE | BG43: FALSE | BH43: FALSE | BI43: FALSE | BJ43: FALSE | BK43: FALSE | BL43: FALSE | BM43: FALSE | BN43: FALSE | BO43: FALSE | BP43: FALSE | BQ43: FALSE | BR43: FALSE | BS43: FALSE | BT43: FALSE | BU43: FALSE | BV43: =IF(BV3,BV29/BV21) -> FALSE | BW43: FALSE | BX43: FALSE
A44: FALSE | B44: 1 | F44: Base | I44: 0.6 | J44: 0.6 | K44: 0.6 | L44: 0.6 | M44: 0.6 | N44: 0.6 | O44: 0.6 | P44: 0.6 | Q44: 0.6 | R44: 0.6 | S44: 0.6 | T44: 0.6 | U44: 0.6 | V44: 0.6 | W44: 0.6 | X44: 0.6 | Y44: 0.6 | Z44: 0.6 | AA44: 0.6 | AB44: 0.6 | AC44: 0.6 | AD44: 0.6 | AE44: 0.6 | AF44: 0.6 | AG44: 0.6 | AH44: 0.6 | AI44: 0.6 | AJ44: 0.6 | AK44: 0.6 | AL44: 0.6 | AM44: 0.6 | AN44: 0.6 | AO44: 0.6 | AP44: 0.6 | AQ44: 0.6 | AR44: 0.6 | AS44: 0.6 | AT44: 0.6 | AU44: 0.6 | AV44: 0.6 | AW44: 0.6 | AX44: 0.6 | AY44: 0.6 | AZ44: 0.6 | BA44: 0.6 | BB44: 0.6 | BC44: 0.6 | BD44: 0.6 | BE44: 0.6 | BF44: 0.6 | BG44: 0.6 | BH44: 0.6 | BI44: 0.6 | BJ44: 0.6 | BK44: 0.6 | BL44: 0.6 | BM44: 0.6 | BN44: 0.6 | BO44: 0.6 | BP44: 0.6 | BQ44: 0.6 | BR44: 0.6 | BS44: 0.6 | BT44: 0.6 | BU44: 0.6 | BV44: 0.6 | BW44: 0.6 | BX44: 0.6
A45: FALSE | B45: 1 | F45: Low | I45: 0.7 | J45: 0.7 | K45: 0.7 | L45: 0.7 | M45: 0.7 | N45: 0.7 | O45: 0.7 | P45: 0.7 | Q45: 0.7 | R45: 0.7 | S45: 0.7 | T45: 0.7 | U45: 0.7 | V45: 0.7 | W45: 0.7 | X45: 0.7 | Y45: 0.7 | Z45: 0.7 | AA45: 0.7 | AB45: 0.7 | AC45: 0.7 | AD45: 0.7 | AE45: 0.7 | AF45: 0.7 | AG45: 0.7 | AH45: 0.7 | AI45: 0.7 | AJ45: 0.7 | AK45: 0.7 | AL45: 0.7 | AM45: 0.7 | AN45: 0.7 | AO45: 0.7 | AP45: 0.7 | AQ45: 0.7 | AR45: 0.7 | AS45: 0.7 | AT45: 0.7 | AU45: 0.7 | AV45: 0.7 | AW45: 0.7 | AX45: 0.7 | AY45: 0.7 | AZ45: 0.7 | BA45: 0.7 | BB45: 0.7 | BC45: 0.7 | BD45: 0.7 | BE45: 0.7 | BF45: 0.7 | BG45: 0.7 | BH45: 0.7 | BI45: 0.7 | BJ45: 0.7 | BK45: 0.7 | BL45: 0.7 | BM45: 0.7 | BN45: 0.7 | BO45: 0.7 | BP45: 0.7 | BQ45: 0.7 | BR45: 0.7 | BS45: 0.7 | BT45: 0.7 | BU45: 0.7 | BV45: 0.7 | BW45: 0.7 | BX45: 0.7
A46: FALSE | B46: 1 | F46: High | I46: 0.5 | J46: 0.5 | K46: 0.5 | L46: 0.5 | M46: 0.5 | N46: 0.5 | O46: 0.5 | P46: 0.5 | Q46: 0.5 | R46: 0.5 | S46: 0.5 | T46: 0.5 | U46: 0.5 | V46: 0.5 | W46: 0.5 | X46: 0.5 | Y46: 0.5 | Z46: 0.5 | AA46: 0.5 | AB46: 0.5 | AC46: 0.5 | AD46: 0.5 | AE46: 0.5 | AF46: 0.5 | AG46: 0.5 | AH46: 0.5 | AI46: 0.5 | AJ46: 0.5 | AK46: 0.5 | AL46: 0.5 | AM46: 0.5 | AN46: 0.5 | AO46: 0.5 | AP46: 0.5 | AQ46: 0.5 | AR46: 0.5 | AS46: 0.5 | AT46: 0.5 | AU46: 0.5 | AV46: 0.5 | AW46: 0.5 | AX46: 0.5 | AY46: 0.5 | AZ46: 0.5 | BA46: 0.5 | BB46: 0.5 | BC46: 0.5 | BD46: 0.5 | BE46: 0.5 | BF46: 0.5 | BG46: 0.5 | BH46: 0.5 | BI46: 0.5 | BJ46: 0.5 | BK46: 0.5 | BL46: 0.5 | BM46: 0.5 | BN46: 0.5 | BO46: 0.5 | BP46: 0.5 | BQ46: 0.5 | BR46: 0.5 | BS46: 0.5 | BT46: 0.5 | BU46: 0.5 | BV46: 0.5 | BW46: 0.5 | BX46: 0.5
A47: FALSE | B47: 1
A48: TRUE | B48: 2 | F48: =E42 -> Cap Exp to Sales | G48: Scenario | H48: =H5 -> 1 | I48: =IF(I3,I43,INDEX(I44:I46,$H$48)) -> 0.4333333333 | J48: 0.4138421671 | K48: 0.4596189522 | L48: 0.3804654392 | M48: 0.2613280091 | N48: 0.2138375673 | O48: 0.1717583055 | P48: 0.1673071806 | Q48: 0.3451696931 | R48: 0.4103713236 | S48: 0.5056308304 | T48: 0.5852701373 | U48: 0.683293714 | V48: 0.8446181588 | W48: 0.5924646808 | X48: 0.5941907513 | Y48: 0.5736047031 | Z48: 0.4977529206 | AA48: 0.5420094299 | AB48: 0.6891393622 | AC48: 0.586255951 | AD48: 0.612189366 | AE48: 0.6938349625 | AF48: 0.6772092409 | AG48: 0.6456133998 | AH48: 0.5113933649 | AI48: 0.5033019216 | AJ48: 0.6459403524 | AK48: 0.6653892228 | AL48: 0.6927940214 | AM48: 0.8118953665 | AN48: 0.8323313207 | AO48: =IF(AO3,AO43,INDEX(AO44:AO46,$H$48)) -> 0.6 | AP48: 0.6 | AQ48: 0.6 | AR48: 0.6 | AS48: 0.6 | AT48: 0.6 | AU48: 0.6 | AV48: 0.6 | AW48: 0.6 | AX48: 0.6 | AY48: 0.6 | AZ48: 0.6 | BA48: 0.6 | BB48: 0.6 | BC48: 0.6 | BD48: 0.6 | BE48: 0.6 | BF48: 0.6 | BG48: 0.6 | BH48: 0.6 | BI48: 0.6 | BJ48: 0.6 | BK48: 0.6 | BL48: 0.6 | BM48: 0.6 | BN48: 0.6 | BO48: 0.6 | BP48: 0.6 | BQ48: 0.6 | BR48: 0.6 | BS48: 0.6 | BT48: 0.6 | BU48: 0.6 | BV48: 0.6 | BW48: 0.6 | BX48: 0.6
A49: FALSE | B49: 2
A50: FALSE | B50: 2 | E50: A/R to Revenues
A51: FALSE | B51: 2 | F51: Historic | I51: =IF(I3,I11/I21) -> 0.25 | J51: =IF(J3,J11/J21) -> 0.2774829006 | K51: 0.2395806776 | L51: 0.2289550172 | M51: 0.229371882 | N51: 0.2710522354 | O51: 0.2435822994 | P51: 0.2419982542 | Q51: 0.2431103723 | R51: 0.256732495 | S51: 0.228503494 | T51: 0.246129549 | U51: 0.2642001944 | V51: 0.2845471741 | W51: 0.2362125098 | X51: 0.2377734826 | Y51: 0.2407053781 | Z51: 0.2471463579 | AA51: 0.2442662845 | AB51: 0.2297828348 | AC51: 0.2250303591 | AD51: 0.2353468581 | AE51: 0.2842391911 | AF51: 0.2271055249 | AG51: 0.269894832 | AH51: 0.25 | AI51: 0.2603955763 | AJ51: 0.2415436706 | AK51: 0.2420828555 | AL51: 0.2127011319 | AM51: 0.2769327372 | AN51: 0.2916460084 | AO51: FALSE | AP51: FALSE | AQ51: FALSE | AR51: FALSE | AS51: FALSE | AT51: FALSE | AU51: FALSE | AV51: FALSE | AW51: FALSE | AX51: FALSE | AY51: FALSE | AZ51: FALSE | BA51: FALSE | BB51: FALSE | BC51: FALSE | BD51: FALSE | BE51: FALSE | BF51: FALSE | BG51: FALSE | BH51: FALSE | BI51: FALSE | BJ51: FALSE | BK51: FALSE | BL51: FALSE | BM51: FALSE | BN51: FALSE | BO51: FALSE | BP51: FALSE | BQ51: FALSE | BR51: FALSE | BS51: FALSE | BT51: FALSE | BU51: FALSE | BV51: =IF(BV3,BV11/BV21) -> FALSE | BW51: FALSE | BX51: FALSE
A52: FALSE | B52: 2 | F52: Projected | G52: Average | I52: =AVERAGEIF(3:3,TRUE,51:51) -> 0.2486891293 | J52: 0.2486891293 | K52: 0.2486891293 | L52: 0.2486891293 | M52: 0.2486891293 | N52: 0.2486891293 | O52: 0.2486891293 | P52: 0.2486891293 | Q52: 0.2486891293 | R52: 0.2486891293 | S52: 0.2486891293 | T52: 0.2486891293 | U52: 0.2486891293 | V52: 0.2486891293 | W52: 0.2486891293 | X52: 0.2486891293 | Y52: 0.2486891293 | Z52: 0.2486891293 | AA52: 0.2486891293 | AB52: 0.2486891293 | AC52: 0.2486891293 | AD52: 0.2486891293 | AE52: 0.2486891293 | AF52: 0.2486891293 | AG52: 0.2486891293 | AH52: 0.2486891293 | AI52: 0.2486891293 | AJ52: 0.2486891293 | AK52: 0.2486891293 | AL52: 0.2486891293 | AM52: 0.2486891293 | AN52: 0.2486891293 | AO52: =AVERAGEIF(3:3,TRUE,51:51) -> 0.2486891293 | AP52: 0.2486891293 | AQ52: 0.2486891293 | AR52: 0.2486891293 | AS52: 0.2486891293 | AT52: 0.2486891293 | AU52: 0.2486891293 | AV52: 0.2486891293 | AW52: 0.2486891293 | AX52: 0.2486891293 | AY52: 0.2486891293 | AZ52: 0.2486891293 | BA52: 0.2486891293 | BB52: 0.2486891293 | BC52: 0.2486891293 | BD52: 0.2486891293 | BE52: 0.2486891293 | BF52: 0.2486891293 | BG52: 0.2486891293 | BH52: 0.2486891293 | BI52: 0.2486891293 | BJ52: 0.2486891293 | BK52: 0.2486891293 | BL52: 0.2486891293 | BM52: 0.2486891293 | BN52: 0.2486891293 | BO52: 0.2486891293 | BP52: 0.2486891293 | BQ52: 0.2486891293 | BR52: 0.2486891293 | BS52: 0.2486891293 | BT52: 0.2486891293 | BU52: =AVERAGEIF(3:3,TRUE,51:51) -> 0.2486891293 | BV52: 0.2486891293 | BW52: 0.2486891293 | BX52: 0.2486891293
A53: TRUE | B53: 3 | F53: =E50 -> A/R to Revenues | I53: =IF(I3,I51,I52) -> 0.25 | J53: =IF(J3,J51,J52) -> 0.2774829006 | K53: 0.2395806776 | L53: 0.2289550172 | M53: 0.229371882 | N53: 0.2710522354 | O53: 0.2435822994 | P53: 0.2419982542 | Q53: 0.2431103723 | R53: 0.256732495 | S53: 0.228503494 | T53: 0.246129549 | U53: 0.2642001944 | V53: 0.2845471741 | W53: 0.2362125098 | X53: 0.2377734826 | Y53: 0.2407053781 | Z53: 0.2471463579 | AA53: 0.2442662845 | AB53: 0.2297828348 | AC53: 0.2250303591 | AD53: 0.2353468581 | AE53: 0.2842391911 | AF53: 0.2271055249 | AG53: 0.269894832 | AH53: 0.25 | AI53: 0.2603955763 | AJ53: 0.2415436706 | AK53: 0.2420828555 | AL53: 0.2127011319 | AM53: 0.2769327372 | AN53: 0.2916460084 | AO53: 0.2486891293 | AP53: 0.2486891293 | AQ53: 0.2486891293 | AR53: 0.2486891293 | AS53: 0.2486891293 | AT53: 0.2486891293 | AU53: 0.2486891293 | AV53: 0.2486891293 | AW53: 0.2486891293 | AX53: 0.2486891293 | AY53: 0.2486891293 | AZ53: 0.2486891293 | BA53: 0.2486891293 | BB53: 0.2486891293 | BC53: 0.2486891293 | BD53: 0.2486891293 | BE53: 0.2486891293 | BF53: 0.2486891293 | BG53: 0.2486891293 | BH53: 0.2486891293 | BI53: 0.2486891293 | BJ53: 0.2486891293 | BK53: 0.2486891293 | BL53: 0.2486891293 | BM53: 0.2486891293 | BN53: 0.2486891293 | BO53: 0.2486891293 | BP53: 0.2486891293 | BQ53: 0.2486891293 | BR53: 0.2486891293 | BS53: 0.2486891293 | BT53: 0.2486891293 | BU53: 0.2486891293 | BV53: =IF(BV3,BV51,BV52) -> 0.2486891293 | BW53: 0.2486891293 | BX53: 0.2486891293
A54: FALSE | B54: 3
A55: FALSE | B55: 3 | D55: Tax and Depreciation
A56: FALSE | B56: 3 | E56: Depreciation Rate
A57: FALSE | B57: 3 | F57: Historic | J57: =IF(J3,J22/I12) -> 0.1072488635 | K57: =IF(K3,K22/J12) -> 0.09860761879 | L57: 0.07705511746 | M57: 0.08894432032 | N57: 0.1089507981 | O57: 0.09493790071 | P57: 0.09445220093 | Q57: 0.127577423 | R57: 0.1086904772 | S57: 0.118966457 | T57: 0.09793505289 | U57: 0.1023416205 | V57: 0.1176521709 | W57: 0.07228884343 | X57: 0.1070450747 | Y57: 0.1260949298 | Z57: 0.0970219441 | AA57: 0.1061534036 | AB57: 0.1088652122 | AC57: 0.08163034341 | AD57: 0.1056364591 | AE57: 0.1068003015 | AF57: 0.09588681172 | AG57: 0.08922624621 | AH57: 0.08781699388 | AI57: 0.09293963228 | AJ57: 0.1114467466 | AK57: 0.1066225497 | AL57: 0.08298801002 | AM57: 0.1084347468 | AN57: 0.1245121218 | AO57: FALSE | AP57: FALSE | AQ57: FALSE | AR57: FALSE | AS57: FALSE | AT57: FALSE | AU57: FALSE | AV57: FALSE | AW57: FALSE | AX57: FALSE | AY57: FALSE | AZ57: FALSE | BA57: FALSE | BB57: FALSE | BC57: FALSE | BD57: FALSE | BE57: FALSE | BF57: FALSE | BG57: FALSE | BH57: FALSE | BI57: FALSE | BJ57: FALSE | BK57: FALSE | BL57: FALSE | BM57: FALSE | BN57: FALSE | BO57: FALSE | BP57: FALSE | BQ57: FALSE | BR57: FALSE | BS57: FALSE | BT57: FALSE | BU57: FALSE | BV57: FALSE | BW57: =IF(BW3,BW22/BV12) -> FALSE | BX57: FALSE
A58: FALSE | B58: 3 | F58: Projected | G58: Last Period | J58: =IF(NOT(J3),I58,J57) -> 0.1072488635 | K58: =IF(NOT(K3),J58,K57) -> 0.09860761879 | L58: 0.07705511746 | M58: 0.08894432032 | N58: 0.1089507981 | O58: 0.09493790071 | P58: 0.09445220093 | Q58: 0.127577423 | R58: 0.1086904772 | S58: 0.118966457 | T58: 0.09793505289 | U58: 0.1023416205 | V58: 0.1176521709 | W58: 0.07228884343 | X58: 0.1070450747 | Y58: 0.1260949298 | Z58: 0.0970219441 | AA58: 0.1061534036 | AB58: 0.1088652122 | AC58: 0.08163034341 | AD58: 0.1056364591 | AE58: 0.1068003015 | AF58: 0.09588681172 | AG58: 0.08922624621 | AH58: 0.08781699388 | AI58: 0.09293963228 | AJ58: 0.1114467466 | AK58: 0.1066225497 | AL58: 0.08298801002 | AM58: 0.1084347468 | AN58: 0.1245121218 | AO58: 0.1245121218 | AP58: 0.1245121218 | AQ58: 0.1245121218 | AR58: 0.1245121218 | AS58: 0.1245121218 | AT58: 0.1245121218 | AU58: 0.1245121218 | AV58: 0.1245121218 | AW58: 0.1245121218 | AX58: 0.1245121218 | AY58: 0.1245121218 | AZ58: 0.1245121218 | BA58: 0.1245121218 | BB58: 0.1245121218 | BC58: 0.1245121218 | BD58: 0.1245121218 | BE58: 0.1245121218 | BF58: 0.1245121218 | BG58: 0.1245121218 | BH58: 0.1245121218 | BI58: 0.1245121218 | BJ58: 0.1245121218 | BK58: 0.1245121218 | BL58: 0.1245121218 | BM58: 0.1245121218 | BN58: 0.1245121218 | BO58: 0.1245121218 | BP58: 0.1245121218 | BQ58: 0.1245121218 | BR58: 0.1245121218 | BS58: 0.1245121218 | BT58: 0.1245121218 | BU58: 0.1245121218 | BV58: 0.1245121218 | BW58: =IF(NOT(BW3),BV58,BW57) -> 0.1245121218 | BX58: 0.1245121218
A59: TRUE | B59: 4 | F59: =D55 -> Tax and Depreciation | J59: =IF(J3,J57,J58) -> 0.1072488635 | K59: =IF(K3,K57,K58) -> 0.09860761879 | L59: 0.07705511746 | M59: 0.08894432032 | N59: 0.1089507981 | O59: 0.09493790071 | P59: 0.09445220093 | Q59: 0.127577423 | R59: 0.1086904772 | S59: 0.118966457 | T59: 0.09793505289 | U59: 0.1023416205 | V59: 0.1176521709 | W59: 0.07228884343 | X59: 0.1070450747 | Y59: 0.1260949298 | Z59: 0.0970219441 | AA59: 0.1061534036 | AB59: 0.1088652122 | AC59: 0.08163034341 | AD59: 0.1056364591 | AE59: 0.1068003015 | AF59: 0.09588681172 | AG59: 0.08922624621 | AH59: 0.08781699388 | AI59: 0.09293963228 | AJ59: 0.1114467466 | AK59: 0.1066225497 | AL59: 0.08298801002 | AM59: 0.1084347468 | AN59: 0.1245121218 | AO59: 0.1245121218 | AP59: 0.1245121218 | AQ59: 0.1245121218 | AR59: 0.1245121218 | AS59: 0.1245121218 | AT59: 0.1245121218 | AU59: 0.1245121218 | AV59: 0.1245121218 | AW59: 0.1245121218 | AX59: 0.1245121218 | AY59: 0.1245121218 | AZ59: 0.1245121218 | BA59: 0.1245121218 | BB59: 0.1245121218 | BC59: 0.1245121218 | BD59: 0.1245121218 | BE59: 0.1245121218 | BF59: 0.1245121218 | BG59: 0.1245121218 | BH59: 0.1245121218 | BI59: 0.1245121218 | BJ59: 0.1245121218 | BK59: 0.1245121218 | BL59: 0.1245121218 | BM59: 0.1245121218 | BN59: 0.1245121218 | BO59: 0.1245121218 | BP59: 0.1245121218 | BQ59: 0.1245121218 | BR59: 0.1245121218 | BS59: 0.1245121218 | BT59: 0.1245121218 | BU59: 0.1245121218 | BV59: 0.1245121218 | BW59: =IF(BW3,BW57,BW58) -> 0.1245121218 | BX59: 0.1245121218
A60: FALSE | B60: 4
A61: FALSE | B61: 4 | D61: Financing
A62: FALSE | B62: 4 | E62: Interest Expense Rate
A63: FALSE | B63: 4 | F63: Historic | J63: =IF(J3,J24/I16) -> 0.04790671682 | K63: =IF(K3,K24/J16) -> 0.0497564144 | L63: 0.04180634592 | M63: 0.04231753985 | N63: 0.05191983112 | O63: 0.0449569405 | P63: 0.05219650404 | Q63: 0.05582889633 | R63: 0.05872942126 | S63: 0.05679638645 | T63: 0.05298825672 | U63: 0.04796092399 | V63: 0.05886089183 | W63: 0.03842029718 | X63: 0.05614113815 | Y63: 0.06227516496 | Z63: 0.04739377501 | AA63: 0.05407413059 | AB63: 0.05384664205 | AC63: 0.04022996546 | AD63: 0.05110448683 | AE63: 0.05457554338 | AF63: 0.04910281272 | AG63: 0.04660670574 | AH63: 0.04362103208 | AI63: 0.05016310435 | AJ63: 0.05236432222 | AK63: 0.05510937034 | AL63: 0.04406825668 | AM63: 0.05101348251 | AN63: 0.05918751072 | AO63: FALSE | AP63: FALSE | AQ63: FALSE | AR63: FALSE | AS63: FALSE | AT63: FALSE | AU63: FALSE | AV63: FALSE | AW63: FALSE | AX63: FALSE | AY63: FALSE | AZ63: FALSE | BA63: FALSE | BB63: FALSE | BC63: FALSE | BD63: FALSE | BE63: FALSE | BF63: FALSE | BG63: FALSE | BH63: FALSE | BI63: FALSE | BJ63: FALSE | BK63: FALSE | BL63: FALSE | BM63: FALSE | BN63: FALSE | BO63: FALSE | BP63: FALSE | BQ63: FALSE | BR63: FALSE | BS63: FALSE | BT63: FALSE | BU63: FALSE | BV63: FALSE | BW63: =IF(BW3,BW24/BV16) -> FALSE | BX63: FALSE
A64: FALSE | B64: 4 | F64: Projected | H64: 0.03 | J64: =$H$64 -> 0.03 | K64: =$H$64 -> 0.03 | L64: 0.03 | M64: 0.03 | N64: 0.03 | O64: 0.03 | P64: 0.03 | Q64: 0.03 | R64: 0.03 | S64: 0.03 | T64: 0.03 | U64: 0.03 | V64: 0.03 | W64: 0.03 | X64: 0.03 | Y64: 0.03 | Z64: 0.03 | AA64: 0.03 | AB64: 0.03 | AC64: 0.03 | AD64: 0.03 | AE64: 0.03 | AF64: 0.03 | AG64: 0.03 | AH64: 0.03 | AI64: 0.03 | AJ64: 0.03 | AK64: 0.03 | AL64: 0.03 | AM64: 0.03 | AN64: 0.03 | AO64: 0.03 | AP64: 0.03 | AQ64: 0.03 | AR64: 0.03 | AS64: 0.03 | AT64: 0.03 | AU64: 0.03 | AV64: 0.03 | AW64: 0.03 | AX64: 0.03 | AY64: 0.03 | AZ64: 0.03 | BA64: 0.03 | BB64: 0.03 | BC64: 0.03 | BD64: 0.03 | BE64: 0.03 | BF64: 0.03 | BG64: 0.03 | BH64: 0.03 | BI64: 0.03 | BJ64: 0.03 | BK64: 0.03 | BL64: 0.03 | BM64: 0.03 | BN64: 0.03 | BO64: 0.03 | BP64: 0.03 | BQ64: 0.03 | BR64: 0.03 | BS64: 0.03 | BT64: 0.03 | BU64: 0.03 | BV64: 0.03 | BW64: =$H$64 -> 0.03 | BX64: 0.03
A65: TRUE | B65: 5 | F65: =D61 -> Financing | G65: Fixed | J65: =IF(J3,J63,J64) -> 0.04790671682 | K65: =IF(K3,K63,K64) -> 0.0497564144 | L65: 0.04180634592 | M65: 0.04231753985 | N65: 0.05191983112 | O65: 0.0449569405 | P65: 0.05219650404 | Q65: 0.05582889633 | R65: 0.05872942126 | S65: 0.05679638645 | T65: 0.05298825672 | U65: 0.04796092399 | V65: 0.05886089183 | W65: 0.03842029718 | X65: 0.05614113815 | Y65: 0.06227516496 | Z65: 0.04739377501 | AA65: 0.05407413059 | AB65: 0.05384664205 | AC65: 0.04022996546 | AD65: 0.05110448683 | AE65: 0.05457554338 | AF65: 0.04910281272 | AG65: 0.04660670574 | AH65: 0.04362103208 | AI65: 0.05016310435 | AJ65: 0.05236432222 | AK65: 0.05510937034 | AL65: 0.04406825668 | AM65: 0.05101348251 | AN65: 0.05918751072 | AO65: 0.03 | AP65: 0.03 | AQ65: 0.03 | AR65: 0.03 | AS65: 0.03 | AT65: 0.03 | AU65: 0.03 | AV65: 0.03 | AW65: 0.03 | AX65: 0.03 | AY65: 0.03 | AZ65: 0.03 | BA65: 0.03 | BB65: 0.03 | BC65: 0.03 | BD65: 0.03 | BE65: 0.03 | BF65: 0.03 | BG65: 0.03 | BH65: 0.03 | BI65: 0.03 | BJ65: 0.03 | BK65: 0.03 | BL65: 0.03 | BM65: 0.03 | BN65: 0.03 | BO65: 0.03 | BP65: 0.03 | BQ65: 0.03 | BR65: 0.03 | BS65: 0.03 | BT65: 0.03 | BU65: 0.03 | BV65: 0.03 | BW65: =IF(BW3,BW63,BW64) -> 0.03 | BX65: 0.03
A66: FALSE | B66: 5
A67: FALSE | B67: 5 | E67: Interest Income Rate
A68: FALSE | B68: 5 | F68: Historic | J68: =IF(J3,J25/I10) -> 0.008331921014 | K68: =IF(K3,K25/J10) -> 0.01228408361 | L68: 0.009998235344 | M68: 0.0108130846 | N68: 0.01084796824 | O68: 0.01021357764 | P68: 0.01055314216 | Q68: 0.007114262314 | R68: 0.008224088531 | S68: 0.008665456826 | T68: 0.008661384975 | U68: 0.01052955781 | V68: 0.01022982121 | W68: 0.01093922887 | X68: 0.01002343929 | Y68: 0.008383317139 | Z68: 0.0109326012 | AA68: 0.01028897996 | AB68: 0.009656242592 | AC68: 0.008305652766 | AD68: 0.01153484286 | AE68: 0.01095257296 | AF68: 0.01177498263 | AG68: 0.01255766917 | AH68: 0.005857749952 | AI68: 0.01047183954 | AJ68: 0.009602905047 | AK68: 0.01142673795 | AL68: 0.008276063031 | AM68: 0.01148222295 | AN68: 0.009997878817 | AO68: FALSE | AP68: FALSE | AQ68: FALSE | AR68: FALSE | AS68: FALSE | AT68: FALSE | AU68: FALSE | AV68: FALSE | AW68: FALSE | AX68: FALSE | AY68: FALSE | AZ68: FALSE | BA68: FALSE | BB68: FALSE | BC68: FALSE | BD68: FALSE | BE68: FALSE | BF68: FALSE | BG68: FALSE | BH68: FALSE | BI68: FALSE | BJ68: FALSE | BK68: FALSE | BL68: FALSE | BM68: FALSE | BN68: FALSE | BO68: FALSE | BP68: FALSE | BQ68: FALSE | BR68: FALSE | BS68: FALSE | BT68: FALSE | BU68: FALSE | BV68: FALSE | BW68: =IF(BW3,BW25/BV10) -> FALSE | BX68: FALSE
A69: FALSE | B69: 5 | F69: Projected | H69: 0.01 | J69: =$H$69 -> 0.01 | K69: =$H$69 -> 0.01 | L69: 0.01 | M69: 0.01 | N69: 0.01 | O69: 0.01 | P69: 0.01 | Q69: 0.01 | R69: 0.01 | S69: 0.01 | T69: 0.01 | U69: 0.01 | V69: 0.01 | W69: 0.01 | X69: 0.01 | Y69: 0.01 | Z69: 0.01 | AA69: 0.01 | AB69: 0.01 | AC69: 0.01 | AD69: 0.01 | AE69: 0.01 | AF69: 0.01 | AG69: 0.01 | AH69: 0.01 | AI69: 0.01 | AJ69: 0.01 | AK69: 0.01 | AL69: 0.01 | AM69: 0.01 | AN69: 0.01 | AO69: 0.01 | AP69: 0.01 | AQ69: 0.01 | AR69: 0.01 | AS69: 0.01 | AT69: 0.01 | AU69: 0.01 | AV69: 0.01 | AW69: 0.01 | AX69: 0.01 | AY69: 0.01 | AZ69: 0.01 | BA69: 0.01 | BB69: 0.01 | BC69: 0.01 | BD69: 0.01 | BE69: 0.01 | BF69: 0.01 | BG69: 0.01 | BH69: 0.01 | BI69: 0.01 | BJ69: 0.01 | BK69: 0.01 | BL69: 0.01 | BM69: 0.01 | BN69: 0.01 | BO69: 0.01 | BP69: 0.01 | BQ69: 0.01 | BR69: 0.01 | BS69: 0.01 | BT69: 0.01 | BU69: 0.01 | BV69: 0.01 | BW69: =$H$69 -> 0.01 | BX69: 0.01
A70: TRUE | B70: 6 | F70: =E67 -> Interest Income Rate | G70: Fixed | J70: =IF(J3,J68,J69) -> 0.008331921014 | K70: =IF(K3,K68,K69) -> 0.01228408361 | L70: 0.009998235344 | M70: 0.0108130846 | N70: 0.01084796824 | O70: 0.01021357764 | P70: 0.01055314216 | Q70: 0.007114262314 | R70: 0.008224088531 | S70: 0.008665456826 | T70: 0.008661384975 | U70: 0.01052955781 | V70: 0.01022982121 | W70: 0.01093922887 | X70: 0.01002343929 | Y70: 0.008383317139 | Z70: 0.0109326012 | AA70: 0.01028897996 | AB70: 0.009656242592 | AC70: 0.008305652766 | AD70: 0.01153484286 | AE70: 0.01095257296 | AF70: 0.01177498263 | AG70: 0.01255766917 | AH70: 0.005857749952 | AI70: 0.01047183954 | AJ70: 0.009602905047 | AK70: 0.01142673795 | AL70: 0.008276063031 | AM70: 0.01148222295 | AN70: 0.009997878817 | AO70: 0.01 | AP70: 0.01 | AQ70: 0.01 | AR70: 0.01 | AS70: 0.01 | AT70: 0.01 | AU70: 0.01 | AV70: 0.01 | AW70: 0.01 | AX70: 0.01 | AY70: 0.01 | AZ70: 0.01 | BA70: 0.01 | BB70: 0.01 | BC70: 0.01 | BD70: 0.01 | BE70: 0.01 | BF70: 0.01 | BG70: 0.01 | BH70: 0.01 | BI70: 0.01 | BJ70: 0.01 | BK70: 0.01 | BL70: 0.01 | BM70: 0.01 | BN70: 0.01 | BO70: 0.01 | BP70: 0.01 | BQ70: 0.01 | BR70: 0.01 | BS70: 0.01 | BT70: 0.01 | BU70: 0.01 | BV70: 0.01 | BW70: =IF(BW3,BW68,BW69) -> 0.01 | BX70: 0.01
C72: Operating Analysis
D73: Revenues
E74: Revenue Growth | I74: =I40 -> 0 | J74: =J40 -> 0.0915878349 | K74: =K40 -> -0.1207713426 | L74: -0.009804615001 | M74: 0.1902433358 | N74: 0.2598123431 | O74: 0.09344642539 | P74: 0.06938339824 | Q74: -0.4192904054 | R74: 0.02333945504 | S74: -0.06042940711 | T74: -0.07433243299 | U74: -0.1823102703 | V74: -0.04091180452 | W74: 0.07386707439 | X74: 0.1276710945 | Y74: 0.3154399958 | Z74: 0.08570283381 | AA74: -0.004609806946 | AB74: -0.1491810898 | AC74: -0.05538518551 | AD74: -0.02625892262 | AE74: -0.03708095145 | AF74: -0.00298533272 | AG74: -0.04102084377 | AH74: 0.1288836189 | AI74: 0.01717057233 | AJ74: -0.1804500723 | AK74: 0.06810345767 | AL74: -0.150950695 | AM74: -0.1344439891 | AN74: 0.1640713903 | AO74: 0.05 | AP74: 0.05 | AQ74: 0.05 | AR74: 0.05 | AS74: 0.05 | AT74: 0.045 | AU74: 0.045 | AV74: 0.045 | AW74: 0.045 | AX74: 0.042 | AY74: 0.042 | AZ74: 0.04 | BA74: 0.04 | BB74: 0.04 | BC74: 0.035 | BD74: 0.035 | BE74: 0.035 | BF74: 0.03 | BG74: 0.03 | BH74: 0.03 | BI74: 0.03 | BJ74: 0.03 | BK74: 0.03 | BL74: 0.03 | BM74: 0.03 | BN74: 0.03 | BO74: 0.03 | BP74: 0.03 | BQ74: 0.03 | BR74: 0.03 | BS74: 0.03 | BT74: 0.03 | BU74: 0.03 | BV74: 0.03 | BW74: =BW40 -> 0.03 | BX74: 0.03
E75: Total Revenues | I75: =IF(I3,I21,H75*(1+I74)) -> 300 | J75: =IF(J3,J21,I75*(1+J74)) -> 327.4763505 | K75: =IF(K3,K21,J75*(1+K74)) -> 287.9265919 | L75: 285.1035826 | M75: 339.3426392 | N75: 427.5080453 | O75: 467.457144 | P75: 499.8909092 | Q75: 290.2914472 | R75: 297.0666914 | S75: 279.1151273 | T75: 258.3678208 | U75: 211.2647136 | V75: 202.6214929 | W75: 217.5885498 | X75: 245.3683181 | Y75: 322.7672994 | Z75: 350.4293716 | AA75: 348.8139599 | AB75: 296.7775132 | AC75: 280.3404356 | AD75: 272.9789978 | AE75: 262.8566768 | AF75: 262.0719622 | AG75: 251.3215491 | AH75: 283.7127799 | AI75: 288.5842907 | AJ75: 236.5092346 | AK75: 252.6163312 | AL75: 214.4837205 | AM75: 185.6476735 | AN75: 216.1071454 | AO75: 226.9125027 | AP75: 238.2581278 | AQ75: 250.1710342 | AR75: 262.6795859 | AS75: 275.8135652 | AT75: 288.2251756 | AU75: 301.1953085 | AV75: 314.7490974 | AW75: 328.9128068 | AX75: 342.7271447 | AY75: 357.1216847 | AZ75: 371.4065521 | BA75: 386.2628142 | BB75: 401.7133268 | BC75: 415.7732932 | BD75: 430.3253585 | BE75: 445.386746 | BF75: 458.7483484 | BG75: 472.5107989 | BH75: 486.6861228 | BI75: 501.2867065 | BJ75: 516.3253077 | BK75: 531.815067 | BL75: 547.769519 | BM75: 564.2026045 | BN75: 581.1286827 | BO75: 598.5625431 | BP75: 616.5194194 | BQ75: 635.015002 | BR75: 654.0654521 | BS75: 673.6874156 | BT75: 693.8980381 | BU75: 714.7149793 | BV75: 736.1564286 | BW75: =IF(BW3,BW21,BV75*(1+BW74)) -> 758.2411215 | BX75: 780.9883551
D77: Capital Expenditures
E78: Cap Exp to Sales | I78: =I48 -> 0.4333333333 | J78: =J48 -> 0.4138421671 | K78: =K48 -> 0.4596189522 | L78: 0.3804654392 | M78: 0.2613280091 | N78: 0.2138375673 | O78: 0.1717583055 | P78: 0.1673071806 | Q78: 0.3451696931 | R78: 0.4103713236 | S78: 0.5056308304 | T78: 0.5852701373 | U78: 0.683293714 | V78: 0.8446181588 | W78: 0.5924646808 | X78: 0.5941907513 | Y78: 0.5736047031 | Z78: 0.4977529206 | AA78: 0.5420094299 | AB78: 0.6891393622 | AC78: 0.586255951 | AD78: 0.612189366 | AE78: 0.6938349625 | AF78: 0.6772092409 | AG78: 0.6456133998 | AH78: 0.5113933649 | AI78: 0.5033019216 | AJ78: 0.6459403524 | AK78: 0.6653892228 | AL78: 0.6927940214 | AM78: 0.8118953665 | AN78: 0.8323313207 | AO78: 0.6 | AP78: 0.6 | AQ78: 0.6 | AR78: 0.6 | AS78: 0.6 | AT78: 0.6 | AU78: 0.6 | AV78: 0.6 | AW78: 0.6 | AX78: 0.6 | AY78: 0.6 | AZ78: 0.6 | BA78: 0.6 | BB78: 0.6 | BC78: 0.6 | BD78: 0.6 | BE78: 0.6 | BF78: 0.6 | BG78: 0.6 | BH78: 0.6 | BI78: 0.6 | BJ78: 0.6 | BK78: 0.6 | BL78: 0.6 | BM78: 0.6 | BN78: 0.6 | BO78: 0.6 | BP78: 0.6 | BQ78: 0.6 | BR78: 0.6 | BS78: 0.6 | BT78: 0.6 | BU78: 0.6 | BV78: 0.6 | BW78: =BW48 -> 0.6 | BX78: 0.6
E79: Total Cap Exp | I79: =IF(I3,I29,I78*I75) -> 130 | J79: =IF(J3,J29,J78*J75) -> 135.5235226 | K79: =IF(K3,K29,K78*K75) -> 132.3365185 | L79: 108.4720598 | M79: 88.67973629 | N79: 91.41728043 | O79: 80.28964693 | P79: 83.63533864 | Q79: 100.1998097 | R79: 121.9076513 | S79: 141.1292136 | T79: 151.21497 | U79: 144.3558508 | V79: 171.1377923 | W79: 128.9135307 | X79: 145.7955853 | Y79: 185.1408409 | Z79: 174.4272432 | AA79: 189.0604555 | AB79: 204.5210662 | AC79: 164.3512487 | AD79: 167.1148396 | AE79: 182.3791525 | AF79: 177.4775546 | AG79: 162.2565598 | AH79: 145.0888332 | AI79: 145.2450281 | AJ79: 152.7708583 | AK79: 168.0881843 | AL79: 148.5930392 | AM79: 150.7264859 | AN79: 179.8727457 | AO79: 136.1475016 | AP79: 142.9548767 | AQ79: 150.1026205 | AR79: 157.6077515 | AS79: 165.4881391 | AT79: 172.9351054 | AU79: 180.7171851 | AV79: 188.8494584 | AW79: 197.3476841 | AX79: 205.6362868 | AY79: 214.2730108 | AZ79: 222.8439313 | BA79: 231.7576885 | BB79: 241.0279961 | BC79: 249.4639759 | BD79: 258.1952151 | BE79: 267.2320476 | BF79: 275.2490091 | BG79: 283.5064793 | BH79: 292.0116737 | BI79: 300.7720239 | BJ79: 309.7951846 | BK79: 319.0890402 | BL79: 328.6617114 | BM79: 338.5215627 | BN79: 348.6772096 | BO79: 359.1375259 | BP79: 369.9116517 | BQ79: 381.0090012 | BR79: 392.4392712 | BS79: 404.2124494 | BT79: 416.3388229 | BU79: 428.8289876 | BV79: 441.6938572 | BW79: =IF(BW3,BW29,BW78*BW75) -> 454.9446729 | BX79: 468.5930131
D81: Working Capital
E82: A/R to Sales | I82: =I53 -> 0.25 | J82: =J53 -> 0.2774829006 | K82: =K53 -> 0.2395806776 | L82: 0.2289550172 | M82: 0.229371882 | N82: 0.2710522354 | O82: 0.2435822994 | P82: 0.2419982542 | Q82: 0.2431103723 | R82: 0.256732495 | S82: 0.228503494 | T82: 0.246129549 | U82: 0.2642001944 | V82: 0.2845471741 | W82: 0.2362125098 | X82: 0.2377734826 | Y82: 0.2407053781 | Z82: 0.2471463579 | AA82: 0.2442662845 | AB82: 0.2297828348 | AC82: 0.2250303591 | AD82: 0.2353468581 | AE82: 0.2842391911 | AF82: 0.2271055249 | AG82: 0.269894832 | AH82: 0.25 | AI82: 0.2603955763 | AJ82: 0.2415436706 | AK82: 0.2420828555 | AL82: 0.2127011319 | AM82: 0.2769327372 | AN82: 0.2916460084 | AO82: 0.2486891293 | AP82: 0.2486891293 | AQ82: 0.2486891293 | AR82: 0.2486891293 | AS82: 0.2486891293 | AT82: 0.2486891293 | AU82: 0.2486891293 | AV82: 0.2486891293 | AW82: 0.2486891293 | AX82: 0.2486891293 | AY82: 0.2486891293 | AZ82: 0.2486891293 | BA82: 0.2486891293 | BB82: 0.2486891293 | BC82: 0.2486891293 | BD82: 0.2486891293 | BE82: 0.2486891293 | BF82: 0.2486891293 | BG82: 0.2486891293 | BH82: 0.2486891293 | BI82: 0.2486891293 | BJ82: 0.2486891293 | BK82: 0.2486891293 | BL82: 0.2486891293 | BM82: 0.2486891293 | BN82: 0.2486891293 | BO82: 0.2486891293 | BP82: 0.2486891293 | BQ82: 0.2486891293 | BR82: 0.2486891293 | BS82: 0.2486891293 | BT82: 0.2486891293 | BU82: 0.2486891293 | BV82: 0.2486891293 | BW82: =BW53 -> 0.2486891293 | BX82: 0.2486891293
E83: A/R Amount | I83: =IF(I3,I11,I82*I75) -> 75 | J83: =IF(J3,J11,J82*J75) -> 90.86908762 | K83: =IF(K3,K11,K82*K75) -> 68.98164799 | L83: 65.27589564 | M83: 77.83565979 | N83: 115.8770113 | O83: 113.864286 | P83: 120.9727273 | Q83: 70.5728618 | R83: 76.26667284 | S83: 63.77878184 | T83: 63.59195521 | U83: 55.8161784 | V83: 57.65537323 | W83: 51.39713746 | X83: 58.34207953 | Y83: 77.69182485 | Z83: 86.6073429 | AA83: 85.20348996 | AB83: 68.1943783 | AC83: 63.08510889 | AD83: 64.24474944 | AE83: 74.7141692 | AF83: 59.51799054 | AG83: 67.83038729 | AH83: 70.92819498 | AI83: 75.14607268 | AJ83: 57.12730865 | AK83: 61.15408281 | AL83: 45.62093012 | AM83: 51.41191837 | AN83: 63.02678635 | AO83: 56.43067272 | AP83: 59.25220635 | AQ83: 62.21481667 | AR83: 65.3255575 | AS83: 68.59183538 | AT83: 71.67846797 | AU83: 74.90399903 | AV83: 78.27467899 | AW83: 81.79703954 | AX83: 85.2325152 | AY83: 88.81228084 | AZ83: 92.36477207 | BA83: 96.05936296 | BB83: 99.90173747 | BC83: 103.3982983 | BD83: 107.0172387 | BE83: 110.7628421 | BF83: 114.0857273 | BG83: 117.5082992 | BH83: 121.0335481 | BI83: 124.6645546 | BJ83: 128.4044912 | BK83: 132.256626 | BL83: 136.2243247 | BM83: 140.3110545 | BN83: 144.5203861 | BO83: 148.8559977 | BP83: 153.3216776 | BQ83: 157.921328 | BR83: 162.6589678 | BS83: 167.5387368 | BT83: 172.5648989 | BU83: 177.7418459 | BV83: 183.0741013 | BW83: =IF(BW3,BW11,BW82*BW75) -> 188.5663243 | BX83: 194.223314
E84: Working Capital Change | I84: =I83-H83 -> 75 | J84: =J83-I83 -> 15.86908762 | K84: -21.88743963 | L84: -3.705752346 | M84: 12.55976415 | N84: 38.04135155 | O84: -2.012725334 | P84: 7.108441295 | Q84: -50.3998655 | R84: 5.693811045 | S84: -12.48789101 | T84: -0.1868266247 | U84: -7.775776812 | V84: 1.839194834 | W84: -6.258235777 | X84: 6.944942076 | Y84: 19.34974531 | Z84: 8.915518055 | AA84: -1.403852938 | AB84: -17.00911166 | AC84: -5.109269406 | AD84: 1.159640549 | AE84: 10.46941976 | AF84: -15.19617866 | AG84: 8.312396746 | AH84: 3.097807691 | AI84: 4.217877702 | AJ84: -18.01876403 | AK84: 4.026774162 | AL84: -15.53315269 | AM84: 5.790988257 | AN84: 11.61486797 | AO84: -6.596113631 | AP84: 2.821533636 | AQ84: 2.962610318 | AR84: 3.110740833 | AS84: 3.266277875 | AT84: 3.086632592 | AU84: 3.225531059 | AV84: 3.370679956 | AW84: 3.522360554 | AX84: 3.435475661 | AY84: 3.579765638 | AZ84: 3.552491234 | BA84: 3.694590883 | BB84: 3.842374518 | BC84: 3.496560812 | BD84: 3.61894044 | BE84: 3.745603355 | BF84: 3.322885262 | BG84: 3.42257182 | BH84: 3.525248975 | BI84: 3.631006444 | BJ84: 3.739936637 | BK84: 3.852134737 | BL84: 3.967698779 | BM84: 4.086729742 | BN84: 4.209331634 | BO84: 4.335611583 | BP84: 4.465679931 | BQ84: 4.599650329 | BR84: 4.737639839 | BS84: 4.879769034 | BT84: 5.026162105 | BU84: 5.176946968 | BV84: =BV83-BU83 -> 5.332255377 | BW84: 5.492223038 | BX84: 5.656989729
C86: Depreciation and Taxes
D87: Depreciation Rate | I87: =I59 -> 0 | J87: =J59 -> 0.1072488635 | K87: =K59 -> 0.09860761879 | L87: 0.07705511746 | M87: 0.08894432032 | N87: 0.1089507981 | O87: 0.09493790071 | P87: 0.09445220093 | Q87: 0.127577423 | R87: 0.1086904772 | S87: 0.118966457 | T87: 0.09793505289 | U87: 0.1023416205 | V87: 0.1176521709 | W87: 0.07228884343 | X87: 0.1070450747 | Y87: 0.1260949298 | Z87: 0.0970219441 | AA87: 0.1061534036 | AB87: 0.1088652122 | AC87: 0.08163034341 | AD87: 0.1056364591 | AE87: 0.1068003015 | AF87: 0.09588681172 | AG87: 0.08922624621 | AH87: 0.08781699388 | AI87: 0.09293963228 | AJ87: 0.1114467466 | AK87: 0.1066225497 | AL87: 0.08298801002 | AM87: 0.1084347468 | AN87: 0.1245121218 | AO87: 0.1245121218 | AP87: 0.1245121218 | AQ87: 0.1245121218 | AR87: 0.1245121218 | AS87: 0.1245121218 | AT87: 0.1245121218 | AU87: 0.1245121218 | AV87: 0.1245121218 | AW87: 0.1245121218 | AX87: 0.1245121218 | AY87: 0.1245121218 | AZ87: 0.1245121218 | BA87: 0.1245121218 | BB87: 0.1245121218 | BC87: 0.1245121218 | BD87: 0.1245121218 | BE87: 0.1245121218 | BF87: 0.1245121218 | BG87: 0.1245121218 | BH87: 0.1245121218 | BI87: 0.1245121218 | BJ87: 0.1245121218 | BK87: 0.1245121218 | BL87: 0.1245121218 | BM87: 0.1245121218 | BN87: 0.1245121218 | BO87: 0.1245121218 | BP87: 0.1245121218 | BQ87: 0.1245121218 | BR87: 0.1245121218 | BS87: 0.1245121218 | BT87: 0.1245121218 | BU87: 0.1245121218 | BV87: 0.1245121218 | BW87: =BW59 -> 0.1245121218 | BX87: 0.1245121218
D88: Depreciation Expense | G88: Opening Balance | I88: =IF(I3,I22,I87*I91) -> 100 | J88: =IF(J3,J22,J87*J91) -> 107.2488635 | K88: =IF(K3,K22,K87*K91) -> 102.7973219 | L88: 78.44004597 | M88: 74.21518176 | N88: 74.32098494 | O88: 66.76126687 | P88: 58.33487588 | Q88: 82.07677673 | R88: 83.77511641 | S88: 111.5609335 | T88: 106.3192077 | U88: 119.0429622 | V88: 130.6444556 | W88: 95.1642544 | X88: 106.1504502 | Y88: 141.4160315 | Z88: 138.1748025 | AA88: 142.4311196 | AB88: 158.3238971 | AC88: 128.4240374 | AD88: 133.5498766 | AE88: 137.2916558 | AF88: 134.5211958 | AG88: 121.8127383 | AH88: 109.6067948 | AI88: 103.7269447 | AJ88: 124.5160449 | AK88: 125.2986033 | AL88: 107.3023379 | AM88: 123.9434507 | AN88: 144.3636506 | AO88: 172.2795171 | AP88: 167.7806432 | AQ88: 164.6895344 | AR88: 162.8732868 | AS88: 162.2176638 | AT88: 162.6248776 | AU88: 163.908626 | AV88: 166.0014953 | AW88: 168.8463437 | AX88: 172.3951061 | AY88: 176.534036 | AZ88: 181.2329958 | BA88: 186.4140617 | BB88: 192.0598929 | BC88: 198.1570153 | BD88: 204.5453538 | BE88: 211.2254119 | BF88: 218.198917 | BG88: 225.302345 | BH88: 232.5494652 | BI88: 239.953231 | BJ88: 247.5259079 | BK88: 255.2791877 | BL88: 263.2242878 | BM88: 271.3720403 | BN88: 279.7329698 | BO88: 288.3173634 | BP88: 297.1353321 | BQ88: 306.1968661 | BR88: 315.5118837 | BS88: 325.090276 | BT88: 334.9419457 | BU88: 345.0768436 | BV88: 355.5050007 | BW88: =IF(BW3,BW22,BW87*BW91) -> 366.2365581 | BX88: 377.2817937
D90: Net Plant
E91: Opening balance | I91: =H94 -> 0 | J91: =I94 -> 1000 | K91: =J94 -> 1042.488635 | L91: 1017.973219 | M91: 834.4004597 | N91: 682.1518176 | O91: 703.2098494 | P91: 617.6126687 | Q91: 643.3487588 | R91: 770.7677673 | S91: 937.7511641 | T91: 1085.609335 | U91: 1163.192077 | V91: 1110.429622 | W91: 1316.444556 | X91: 991.642544 | Y91: 1121.504502 | Z91: 1424.160315 | AA91: 1341.748025 | AB91: 1454.311196 | AC91: 1573.238971 | AD91: 1264.240374 | AE91: 1285.498766 | AF91: 1402.916558 | AG91: 1365.211958 | AH91: 1248.127383 | AI91: 1116.067948 | AJ91: 1117.269447 | AK91: 1175.160449 | AL91: 1292.986033 | AM91: 1143.023379 | AN91: 1159.434507 | AO91: 1383.636506 | AP91: 1347.50449 | AQ91: 1322.678724 | AR91: 1308.09181 | AS91: 1302.826275 | AT91: 1306.09675 | AU91: 1316.406978 | AV91: 1333.215537 | AW91: 1356.0635 | AX91: 1384.56484 | AY91: 1417.806021 | AZ91: 1455.544996 | BA91: 1497.155931 | BB91: 1542.499558 | BC91: 1591.467661 | BD91: 1642.774622 | BE91: 1696.424483 | BF91: 1752.431119 | BG91: 1809.481211 | BH91: 1867.685345 | BI91: 1927.147554 | BJ91: 1987.966347 | BK91: 2050.235623 | BL91: 2114.045476 | BM91: 2179.482899 | BN91: 2246.632422 | BO91: 2315.576662 | BP91: 2386.396824 | BQ91: 2459.173144 | BR91: 2533.985279 | BS91: 2610.912666 | BT91: 2690.03484 | BU91: 2771.431717 | BV91: 2855.183861 | BW91: =BV94 -> 2941.372718 | BX91: 3030.080832
E92: Add: Cap Exp | I92: =I79 -> 130 | J92: =J79 -> 135.5235226 | K92: =K79 -> 132.3365185 | L92: 108.4720598 | M92: 88.67973629 | N92: 91.41728043 | O92: 80.28964693 | P92: 83.63533864 | Q92: 100.1998097 | R92: 121.9076513 | S92: 141.1292136 | T92: 151.21497 | U92: 144.3558508 | V92: 171.1377923 | W92: 128.9135307 | X92: 145.7955853 | Y92: 185.1408409 | Z92: 174.4272432 | AA92: 189.0604555 | AB92: 204.5210662 | AC92: 164.3512487 | AD92: 167.1148396 | AE92: 182.3791525 | AF92: 177.4775546 | AG92: 162.2565598 | AH92: 145.0888332 | AI92: 145.2450281 | AJ92: 152.7708583 | AK92: 168.0881843 | AL92: 148.5930392 | AM92: 150.7264859 | AN92: 179.8727457 | AO92: 136.1475016 | AP92: 142.9548767 | AQ92: 150.1026205 | AR92: 157.6077515 | AS92: 165.4881391 | AT92: 172.9351054 | AU92: 180.7171851 | AV92: 188.8494584 | AW92: 197.3476841 | AX92: 205.6362868 | AY92: 214.2730108 | AZ92: 222.8439313 | BA92: 231.7576885 | BB92: 241.0279961 | BC92: 249.4639759 | BD92: 258.1952151 | BE92: 267.2320476 | BF92: 275.2490091 | BG92: 283.5064793 | BH92: 292.0116737 | BI92: 300.7720239 | BJ92: 309.7951846 | BK92: 319.0890402 | BL92: 328.6617114 | BM92: 338.5215627 | BN92: 348.6772096 | BO92: 359.1375259 | BP92: 369.9116517 | BQ92: 381.0090012 | BR92: 392.4392712 | BS92: 404.2124494 | BT92: 416.3388229 | BU92: 428.8289876 | BV92: 441.6938572 | BW92: =BW79 -> 454.9446729 | BX92: 468.5930131
E93: Less: Depreciation | I93: =I88 -> 100 | J93: =J88 -> 107.2488635 | K93: =K88 -> 102.7973219 | L93: 78.44004597 | M93: 74.21518176 | N93: 74.32098494 | O93: 66.76126687 | P93: 58.33487588 | Q93: 82.07677673 | R93: 83.77511641 | S93: 111.5609335 | T93: 106.3192077 | U93: 119.0429622 | V93: 130.6444556 | W93: 95.1642544 | X93: 106.1504502 | Y93: 141.4160315 | Z93: 138.1748025 | AA93: 142.4311196 | AB93: 158.3238971 | AC93: 128.4240374 | AD93: 133.5498766 | AE93: 137.2916558 | AF93: 134.5211958 | AG93: 121.8127383 | AH93: 109.6067948 | AI93: 103.7269447 | AJ93: 124.5160449 | AK93: 125.2986033 | AL93: 107.3023379 | AM93: 123.9434507 | AN93: 144.3636506 | AO93: 172.2795171 | AP93: 167.7806432 | AQ93: 164.6895344 | AR93: 162.8732868 | AS93: 162.2176638 | AT93: 162.6248776 | AU93: 163.908626 | AV93: 166.0014953 | AW93: 168.8463437 | AX93: 172.3951061 | AY93: 176.534036 | AZ93: 181.2329958 | BA93: 186.4140617 | BB93: 192.0598929 | BC93: 198.1570153 | BD93: 204.5453538 | BE93: 211.2254119 | BF93: 218.198917 | BG93: 225.302345 | BH93: 232.5494652 | BI93: 239.953231 | BJ93: 247.5259079 | BK93: 255.2791877 | BL93: 263.2242878 | BM93: 271.3720403 | BN93: 279.7329698 | BO93: 288.3173634 | BP93: 297.1353321 | BQ93: 306.1968661 | BR93: 315.5118837 | BS93: 325.090276 | BT93: 334.9419457 | BU93: 345.0768436 | BV93: 355.5050007 | BW93: =BW88 -> 366.2365581 | BX93: 377.2817937
E94: Closing Balance | G94: History or Formula | I94: =IF(I3,I12,I91+I92-I93) -> 1000 | J94: =IF(J3,J12,J91+J92-J93) -> 1042.488635 | K94: =IF(K3,K12,K91+K92-K93) -> 1017.973219 | L94: 834.4004597 | M94: 682.1518176 | N94: 703.2098494 | O94: 617.6126687 | P94: 643.3487588 | Q94: 770.7677673 | R94: 937.7511641 | S94: 1085.609335 | T94: 1163.192077 | U94: 1110.429622 | V94: 1316.444556 | W94: 991.642544 | X94: 1121.504502 | Y94: 1424.160315 | Z94: 1341.748025 | AA94: 1454.311196 | AB94: 1573.238971 | AC94: 1264.240374 | AD94: 1285.498766 | AE94: 1402.916558 | AF94: 1365.211958 | AG94: 1248.127383 | AH94: 1116.067948 | AI94: 1117.269447 | AJ94: 1175.160449 | AK94: 1292.986033 | AL94: 1143.023379 | AM94: 1159.434507 | AN94: 1383.636506 | AO94: 1347.50449 | AP94: 1322.678724 | AQ94: 1308.09181 | AR94: 1302.826275 | AS94: 1306.09675 | AT94: 1316.406978 | AU94: 1333.215537 | AV94: 1356.0635 | AW94: 1384.56484 | AX94: 1417.806021 | AY94: 1455.544996 | AZ94: 1497.155931 | BA94: 1542.499558 | BB94: 1591.467661 | BC94: 1642.774622 | BD94: 1696.424483 | BE94: 1752.431119 | BF94: 1809.481211 | BG94: 1867.685345 | BH94: 1927.147554 | BI94: 1987.966347 | BJ94: 2050.235623 | BK94: 2114.045476 | BL94: 2179.482899 | BM94: 2246.632422 | BN94: 2315.576662 | BO94: 2386.396824 | BP94: 2459.173144 | BQ94: 2533.985279 | BR94: 2610.912666 | BS94: 2690.03484 | BT94: 2771.431717 | BU94: 2855.183861 | BV94: 2941.372718 | BW94: =IF(BW3,BW12,BW91+BW92-BW93) -> 3030.080832 | BX94: 3121.392052
C96: Financing
D97: Interest Income Rate | I97: =I70 -> 0 | J97: =J70 -> 0.008331921014 | K97: =K70 -> 0.01228408361 | L97: 0.009998235344 | M97: 0.0108130846 | N97: 0.01084796824 | O97: 0.01021357764 | P97: 0.01055314216 | Q97: 0.007114262314 | R97: 0.008224088531 | S97: 0.008665456826 | T97: 0.008661384975 | U97: 0.01052955781 | V97: 0.01022982121 | W97: 0.01093922887 | X97: 0.01002343929 | Y97: 0.008383317139 | Z97: 0.0109326012 | AA97: 0.01028897996 | AB97: 0.009656242592 | AC97: 0.008305652766 | AD97: 0.01153484286 | AE97: 0.01095257296 | AF97: 0.01177498263 | AG97: 0.01255766917 | AH97: 0.005857749952 | AI97: 0.01047183954 | AJ97: 0.009602905047 | AK97: 0.01142673795 | AL97: 0.008276063031 | AM97: 0.01148222295 | AN97: 0.009997878817 | AO97: 0.01 | AP97: 0.01 | AQ97: 0.01 | AR97: 0.01 | AS97: 0.01 | AT97: 0.01 | AU97: 0.01 | AV97: 0.01 | AW97: 0.01 | AX97: 0.01 | AY97: 0.01 | AZ97: 0.01 | BA97: 0.01 | BB97: 0.01 | BC97: 0.01 | BD97: 0.01 | BE97: 0.01 | BF97: 0.01 | BG97: 0.01 | BH97: 0.01 | BI97: 0.01 | BJ97: 0.01 | BK97: 0.01 | BL97: 0.01 | BM97: 0.01 | BN97: 0.01 | BO97: 0.01 | BP97: 0.01 | BQ97: 0.01 | BR97: 0.01 | BS97: 0.01 | BT97: 0.01 | BU97: 0.01 | BV97: 0.01 | BW97: =BW70 -> 0.01 | BX97: 0.01
D99: Cash Balance
E100: Opening Balance | I100: =H103 -> 0 | J100: =I103 -> 100 | K100: 83.31921014 | L100: 102.3500144 | M100: 102.3319531 | N100: 110.6524066 | O100: 120.0353793 | P100: 122.5990666 | Q100: 129.3805378 | R100: 92.04470843 | S100: 75.6983831 | T100: 65.59610706 | U100: 56.8153136 | V100: 59.82401291 | W100: 61.19889564 | X100: 66.94687258 | Y100: 67.1037913 | Z100: 56.25523637 | AA100: 61.50160648 | AB100: 63.27887963 | AC100: 61.10362127 | AD100: 50.7505461 | AE100: 58.53995743 | AF100: 64.11631549 | AG100: 75.49685015 | AH100: 94.80644673 | AI100: 55.53524588 | AJ100: 58.15561838 | AK100: 55.84628812 | AL100: 63.81408997 | AM100: 52.81294309 | AN100: 60.64099871 | AO100: 60.62813564 | AP100: 60.62813564 | AQ100: 60.62813564 | AR100: 60.62813564 | AS100: 60.62813564 | AT100: 60.62813564 | AU100: 60.62813564 | AV100: 60.62813564 | AW100: 60.62813564 | AX100: 60.62813564 | AY100: 60.62813564 | AZ100: 60.62813564 | BA100: 60.62813564 | BB100: 60.62813564 | BC100: 60.62813564 | BD100: 60.62813564 | BE100: 60.62813564 | BF100: 62.69822461 | BG100: 98.79581273 | BH100: 136.4476714 | BI100: 175.6606677 | BJ100: 216.4469012 | BK100: 258.8232354 | BL100: 302.8108928 | BM100: 348.4351065 | BN100: 395.7248204 | BO100: 444.7124334 | BP100: 495.433581 | BQ100: 547.9269507 | BR100: 602.2341274 | BS100: 658.3994639 | BT100: 716.4699752 | BU100: 776.4952528 | BV100: =BU103 -> 838.5273971 | BW100: 902.620966 | BX100: 968.8329374
E101: Add: New Cash | G101: Cash Flow | I101: =I140 -> 0 | J101: 0 | K101: 0 | L101: 0 | M101: 0 | N101: 0 | O101: 0 | P101: 0 | Q101: 0 | R101: 0 | S101: 0 | T101: 0 | U101: 0 | V101: 0 | W101: 0 | X101: 0 | Y101: 0 | Z101: 0 | AA101: 0 | AB101: 0 | AC101: 0 | AD101: 0 | AE101: 0 | AF101: 0 | AG101: 0 | AH101: 0 | AI101: 0 | AJ101: 0 | AK101: 0 | AL101: 0 | AM101: 0 | AN101: 0 | AO101: =AO140 -> 0 | AP101: 0 | AQ101: 0 | AR101: 0 | AS101: 0 | AT101: 0 | AU101: 0 | AV101: 0 | AW101: 0 | AX101: 0 | AY101: 0 | AZ101: 0 | BA101: 0 | BB101: 0 | BC101: 0 | BD101: 0 | BE101: 2.070088966 | BF101: 36.09758812 | BG101: 37.65185864 | BH101: 39.21299629 | BI101: 40.78623351 | BJ101: 42.37633418 | BK101: 43.98765744 | BL101: 45.6242137 | BM101: 47.28971394 | BN101: 48.98761299 | BO101: 50.72114755 | BP101: 52.49336975 | BQ101: 54.3071767 | BR101: 56.1653365 | BS101: 58.07051128 | BT101: 60.02527758 | BU101: 62.03214433 | BV101: 64.09356892 | BW101: 66.2119714 | BX101: 68.38974722
E102: Less: Cash Used | G102: Cash Flow | I102: =I137 -> 0 | J102: 0 | K102: 0 | L102: 0 | M102: 0 | N102: 0 | O102: 0 | P102: 0 | Q102: 0 | R102: 0 | S102: 0 | T102: 0 | U102: 0 | V102: 19.8144529 | W102: 0 | X102: 0 | Y102: 0 | Z102: 0 | AA102: 0 | AB102: 0 | AC102: 0 | AD102: 0 | AE102: 7.124153119 | AF102: 0 | AG102: 0 | AH102: 0 | AI102: 0 | AJ102: 0 | AK102: 0 | AL102: 0 | AM102: 13.61946213 | AN102: 25.39172147 | AO102: =AO137 -> 0 | AP102: 0 | AQ102: 0 | AR102: 0 | AS102: 0 | AT102: 0 | AU102: 0 | AV102: 0 | AW102: 0 | AX102: 0 | AY102: 0 | AZ102: 0 | BA102: 0 | BB102: 0 | BC102: 0 | BD102: 0 | BE102: 0 | BF102: 0 | BG102: 0 | BH102: 0 | BI102: 0 | BJ102: 0 | BK102: 0 | BL102: 0 | BM102: 0 | BN102: 0 | BO102: 0 | BP102: 0 | BQ102: 0 | BR102: 0 | BS102: 0 | BT102: 0 | BU102: 0 | BV102: 0 | BW102: 0 | BX102: 0
E103: Closing Balance | I103: =IF(I3,I10,I100+I101-I102) -> 100 | J103: =IF(J3,J10,J100+J101-J102) -> 83.31921014 | K103: 102.3500144 | L103: 102.3319531 | M103: 110.6524066 | N103: 120.0353793 | O103: 122.5990666 | P103: 129.3805378 | Q103: 92.04470843 | R103: 75.6983831 | S103: 65.59610706 | T103: 56.8153136 | U103: 59.82401291 | V103: 61.19889564 | W103: 66.94687258 | X103: 67.1037913 | Y103: 56.25523637 | Z103: 61.50160648 | AA103: 63.27887963 | AB103: 61.10362127 | AC103: 50.7505461 | AD103: 58.53995743 | AE103: 64.11631549 | AF103: 75.49685015 | AG103: 94.80644673 | AH103: 55.53524588 | AI103: 58.15561838 | AJ103: 55.84628812 | AK103: 63.81408997 | AL103: 52.81294309 | AM103: 60.64099871 | AN103: 60.62813564 | AO103: 60.62813564 | AP103: 60.62813564 | AQ103: 60.62813564 | AR103: 60.62813564 | AS103: 60.62813564 | AT103: 60.62813564 | AU103: 60.62813564 | AV103: 60.62813564 | AW103: 60.62813564 | AX103: 60.62813564 | AY103: 60.62813564 | AZ103: 60.62813564 | BA103: 60.62813564 | BB103: 60.62813564 | BC103: 60.62813564 | BD103: 60.62813564 | BE103: 62.69822461 | BF103: 98.79581273 | BG103: 136.4476714 | BH103: 175.6606677 | BI103: 216.4469012 | BJ103: 258.8232354 | BK103: 302.8108928 | BL103: 348.4351065 | BM103: 395.7248204 | BN103: 444.7124334 | BO103: 495.433581 | BP103: 547.9269507 | BQ103: 602.2341274 | BR103: 658.3994639 | BS103: 716.4699752 | BT103: 776.4952528 | BU103: 838.5273971 | BV103: =IF(BV3,BV10,BV100+BV101-BV102) -> 902.620966 | BW103: 968.8329374 | BX103: 1037.222685
E105: Intrest Income | G105: Opening Balance | I105: =IF(I3,I25,I97*I100) -> 1 | J105: =IF(J3,J25,J97*J100) -> 0.8331921014 | K105: =IF(K3,K25,K97*K100) -> 1.023500144 | L105: 1.023319531 | M105: 1.106524066 | N105: 1.200353793 | O105: 1.225990666 | P105: 1.293805378 | Q105: 0.9204470843 | R105: 0.756983831 | S105: 0.6559610706 | T105: 0.568153136 | U105: 0.5982401291 | V105: 0.6119889564 | W105: 0.6694687258 | X105: 0.671037913 | Y105: 0.5625523637 | Z105: 0.6150160648 | AA105: 0.6327887963 | AB105: 0.6110362127 | AC105: 0.507505461 | AD105: 0.5853995743 | AE105: 0.6411631549 | AF105: 0.7549685015 | AG105: 0.9480644673 | AH105: 0.5553524588 | AI105: 0.5815561838 | AJ105: 0.5584628812 | AK105: 0.6381408997 | AL105: 0.5281294309 | AM105: 0.6064099871 | AN105: 0.6062813564 | AO105: 0.6062813564 | AP105: 0.6062813564 | AQ105: 0.6062813564 | AR105: 0.6062813564 | AS105: 0.6062813564 | AT105: 0.6062813564 | AU105: 0.6062813564 | AV105: 0.6062813564 | AW105: 0.6062813564 | AX105: 0.6062813564 | AY105: 0.6062813564 | AZ105: 0.6062813564 | BA105: 0.6062813564 | BB105: 0.6062813564 | BC105: 0.6062813564 | BD105: 0.6062813564 | BE105: 0.6062813564 | BF105: 0.6269822461 | BG105: 0.9879581273 | BH105: 1.364476714 | BI105: 1.756606677 | BJ105: 2.164469012 | BK105: 2.588232354 | BL105: 3.028108928 | BM105: 3.484351065 | BN105: 3.957248204 | BO105: 4.447124334 | BP105: 4.95433581 | BQ105: 5.479269507 | BR105: 6.022341274 | BS105: 6.583994639 | BT105: 7.164699752 | BU105: 7.764952528 | BV105: 8.385273971 | BW105: =IF(BW3,BW25,BW97*BW100) -> 9.02620966 | BX105: 9.688329374
D107: Debt Balance
E108: Opening Balance | I108: =H111 -> 0 | J108: =I111 -> 470 | K108: =J111 -> 450.3231381 | L108: 448.1292934 | M108: 374.6929651 | N108: 317.1216897 | O108: 329.2980915 | P108: 296.0846941 | Q108: 309.0917186 | R108: 345.1249903 | S108: 405.3798189 | T108: 460.482177 | U108: 488.0029562 | V108: 468.1014538 | W108: 551.0573807 | X108: 423.4357666 | Y108: 475.4433174 | Z108: 592.1662205 | AA108: 561.2998524 | AB108: 607.0360304 | AC108: 653.7370367 | AD108: 525.9963682 | AE108: 537.6154893 | AF108: 586.8131492 | AG108: 576.2835233 | AH108: 537.1735319 | AI108: 468.6412774 | AJ108: 470.170026 | AK108: 492.4026948 | AL108: 542.7200492 | AM108: 478.3345287 | AN108: 488.0302023 | AO108: 577.7058565 | AP108: 519.8144909 | AQ108: 475.6145255 | AR108: 435.2624838 | AS108: 398.165807 | AT108: 363.7996768 | AU108: 331.0795015 | AV108: 299.9293602 | AW108: 270.0056022 | AX108: 241.0002726 | AY108: 212.1936043 | AZ108: 183.581096 | BA108: 154.6355607 | BB108: 125.3473916 | BC108: 95.55815194 | BD108: 64.21934749 | BE108: 31.70426695 | BF108: 0 | BG108: 0 | BH108: 0 | BI108: 0 | BJ108: 0 | BK108: 0 | BL108: 0 | BM108: 0 | BN108: 0 | BO108: 0 | BP108: 0 | BQ108: 0 | BR108: 0 | BS108: 0 | BT108: 0 | BU108: 0 | BV108: 0 | BW108: =BV111 -> 0 | BX108: 0
E109: Add: New Debt | G109: Cash Flow | I109: =I141 -> 16.25 | J109: 0 | K109: 0 | L109: 0 | M109: 0 | N109: 0 | O109: 0 | P109: 0 | Q109: 0 | R109: 0 | S109: 0 | T109: 0 | U109: 0 | V109: 0 | W109: 0 | X109: 0 | Y109: 0 | Z109: 0 | AA109: 0 | AB109: 0 | AC109: 0 | AD109: 0 | AE109: 0 | AF109: 0 | AG109: 0 | AH109: 0 | AI109: 0 | AJ109: 0 | AK109: 0 | AL109: 0 | AM109: 0 | AN109: 0 | AO109: =AO141 -> 0 | AP109: 0 | AQ109: 0 | AR109: 0 | AS109: 0 | AT109: 0 | AU109: 0 | AV109: 0 | AW109: 0 | AX109: 0 | AY109: 0 | AZ109: 0 | BA109: 0 | BB109: 0 | BC109: 0 | BD109: 0 | BE109: 0 | BF109: 0 | BG109: 0 | BH109: 0 | BI109: 0 | BJ109: 0 | BK109: 0 | BL109: 0 | BM109: 0 | BN109: 0 | BO109: 0 | BP109: 0 | BQ109: 0 | BR109: 0 | BS109: 0 | BT109: 0 | BU109: 0 | BV109: 0 | BW109: 0 | BX109: 0
E110: Less: Debt Repaid | G110: Cash Flow | I110: =I138 -> 0 | J110: 55.12851441 | K110: 74.22139581 | L110: 68.14984249 | M110: 98.16462981 | N110: 113.8236078 | O110: 182.0431618 | P110: 181.2887223 | Q110: 128.2162665 | R110: 53.06343796 | S110: 55.51263395 | T110: 19.39937356 | U110: 17.17034761 | V110: 0 | W110: 23.46994737 | X110: 11.46829283 | Y110: 13.07819987 | Z110: 47.23433751 | AA110: 43.1064308 | AB110: 24.00084281 | AC110: 32.24410078 | AD110: 21.84226961 | AE110: 0 | AF110: 21.98559926 | AG110: 3.042881122 | AH110: 37.03479075 | AI110: 35.22923938 | AJ110: 33.7297095 | AK110: 3.593578026 | AL110: 16.13884413 | AM110: 0 | AN110: 0 | AO110: =AO138 -> 57.89136565 | AP110: 44.19996539 | AQ110: 40.3520417 | AR110: 37.09667678 | AS110: 34.36613023 | AT110: 32.72017528 | AU110: 31.15014133 | AV110: 29.92375797 | AW110: 29.00532962 | AX110: 28.80666831 | AY110: 28.6125083 | AZ110: 28.94553523 | BA110: 29.2881691 | BB110: 29.7892397 | BC110: 31.33880445 | BD110: 32.51508054 | BE110: 31.70426695 | BF110: 0 | BG110: 0 | BH110: 0 | BI110: 0 | BJ110: 0 | BK110: 0 | BL110: 0 | BM110: 0 | BN110: 0 | BO110: 0 | BP110: 0 | BQ110: 0 | BR110: 0 | BS110: 0 | BT110: 0 | BU110: 0 | BV110: 0 | BW110: 0 | BX110: 0
E111: Closing Balance | I111: =IF(I3,I16,I108+I109-I110) -> 470 | J111: =IF(J3,J16,J108+J109-J110) -> 450.3231381 | K111: 448.1292934 | L111: 374.6929651 | M111: 317.1216897 | N111: 329.2980915 | O111: 296.0846941 | P111: 309.0917186 | Q111: 345.1249903 | R111: 405.3798189 | S111: 460.482177 | T111: 488.0029562 | U111: 468.1014538 | V111: 551.0573807 | W111: 423.4357666 | X111: 475.4433174 | Y111: 592.1662205 | Z111: 561.2998524 | AA111: 607.0360304 | AB111: 653.7370367 | AC111: 525.9963682 | AD111: 537.6154893 | AE111: 586.8131492 | AF111: 576.2835233 | AG111: 537.1735319 | AH111: 468.6412774 | AI111: 470.170026 | AJ111: 492.4026948 | AK111: 542.7200492 | AL111: 478.3345287 | AM111: 488.0302023 | AN111: 577.7058565 | AO111: =IF(AO3,AO16,AO108+AO109-AO110) -> 519.8144909 | AP111: 475.6145255 | AQ111: 435.2624838 | AR111: 398.165807 | AS111: 363.7996768 | AT111: 331.0795015 | AU111: 299.9293602 | AV111: 270.0056022 | AW111: 241.0002726 | AX111: 212.1936043 | AY111: 183.581096 | AZ111: 154.6355607 | BA111: 125.3473916 | BB111: 95.55815194 | BC111: 64.21934749 | BD111: 31.70426695 | BE111: 0 | BF111: 0 | BG111: 0 | BH111: 0 | BI111: 0 | BJ111: 0 | BK111: 0 | BL111: 0 | BM111: 0 | BN111: 0 | BO111: 0 | BP111: 0 | BQ111: 0 | BR111: 0 | BS111: 0 | BT111: 0 | BU111: 0 | BV111: =IF(BV3,BV16,BV108+BV109-BV110) -> 0 | BW111: 0 | BX111: 0
I112: =I65 -> 0 | J112: =J65 -> 0.04790671682 | K112: =K65 -> 0.0497564144 | L112: 0.04180634592 | M112: 0.04231753985 | N112: 0.05191983112 | O112: 0.0449569405 | P112: 0.05219650404 | Q112: 0.05582889633 | R112: 0.05872942126 | S112: 0.05679638645 | T112: 0.05298825672 | U112: 0.04796092399 | V112: 0.05886089183 | W112: 0.03842029718 | X112: 0.05614113815 | Y112: 0.06227516496 | Z112: 0.04739377501 | AA112: 0.05407413059 | AB112: 0.05384664205 | AC112: 0.04022996546 | AD112: 0.05110448683 | AE112: 0.05457554338 | AF112: 0.04910281272 | AG112: 0.04660670574 | AH112: 0.04362103208 | AI112: 0.05016310435 | AJ112: 0.05236432222 | AK112: 0.05510937034 | AL112: 0.04406825668 | AM112: 0.05101348251 | AN112: 0.05918751072 | AO112: 0.03 | AP112: 0.03 | AQ112: 0.03 | AR112: 0.03 | AS112: 0.03 | AT112: 0.03 | AU112: 0.03 | AV112: 0.03 | AW112: 0.03 | AX112: 0.03 | AY112: 0.03 | AZ112: 0.03 | BA112: 0.03 | BB112: 0.03 | BC112: 0.03 | BD112: 0.03 | BE112: 0.03 | BF112: 0.03 | BG112: 0.03 | BH112: 0.03 | BI112: 0.03 | BJ112: 0.03 | BK112: 0.03 | BL112: 0.03 | BM112: 0.03 | BN112: 0.03 | BO112: 0.03 | BP112: 0.03 | BQ112: 0.03 | BR112: 0.03 | BS112: 0.03 | BT112: 0.03 | BU112: 0.03 | BV112: 0.03 | BW112: =BW65 -> 0.03 | BX112: 0.03
E113: Interest Expense | G113: Opening Balance | I113: =IF(I3,I24,I112*I108) -> 23.5 | J113: =IF(J3,J24,J112*J108) -> 22.5161569 | K113: =IF(K3,K24,K112*K108) -> 22.40646467 | L113: 18.73464826 | M113: 15.85608448 | N113: 16.46490457 | O113: 14.80423471 | P113: 15.45458593 | Q113: 17.25624951 | R113: 20.26899094 | S113: 23.02410885 | T113: 24.40014781 | U113: 23.40507269 | V113: 27.55286904 | W113: 21.17178833 | X113: 23.77216587 | Y113: 29.60831102 | Z113: 28.06499262 | AA113: 30.35180152 | AB113: 32.68685184 | AC113: 26.29981841 | AD113: 26.88077447 | AE113: 29.34065746 | AF113: 28.81417617 | AG113: 26.8586766 | AH113: 23.43206387 | AI113: 23.5085013 | AJ113: 24.62013474 | AK113: 27.13600246 | AL113: 23.91672644 | AM113: 24.40151011 | AN113: 28.88529283 | AO113: 17.3311757 | AP113: 15.59443473 | AQ113: 14.26843576 | AR113: 13.05787451 | AS113: 11.94497421 | AT113: 10.9139903 | AU113: 9.932385045 | AV113: 8.997880805 | AW113: 8.100168066 | AX113: 7.230008178 | AY113: 6.365808128 | AZ113: 5.507432879 | BA113: 4.639066822 | BB113: 3.760421749 | BC113: 2.866744558 | BD113: 1.926580425 | BE113: 0.9511280086 | BF113: 0 | BG113: 0 | BH113: 0 | BI113: 0 | BJ113: 0 | BK113: 0 | BL113: 0 | BM113: 0 | BN113: 0 | BO113: 0 | BP113: 0 | BQ113: 0 | BR113: 0 | BS113: 0 | BT113: 0 | BU113: 0 | BV113: 0 | BW113: =IF(BW3,BW24,BW112*BW108) -> 0 | BX113: 0
C115: Profit and Loss
D116: Revenues | I116: =I75 -> 300 | J116: =J75 -> 327.4763505 | K116: =K75 -> 287.9265919 | L116: 285.1035826 | M116: 339.3426392 | N116: 427.5080453 | O116: 467.457144 | P116: 499.8909092 | Q116: 290.2914472 | R116: 297.0666914 | S116: 279.1151273 | T116: 258.3678208 | U116: 211.2647136 | V116: 202.6214929 | W116: 217.5885498 | X116: 245.3683181 | Y116: 322.7672994 | Z116: 350.4293716 | AA116: 348.8139599 | AB116: 296.7775132 | AC116: 280.3404356 | AD116: 272.9789978 | AE116: 262.8566768 | AF116: 262.0719622 | AG116: 251.3215491 | AH116: 283.7127799 | AI116: 288.5842907 | AJ116: 236.5092346 | AK116: 252.6163312 | AL116: 214.4837205 | AM116: 185.6476735 | AN116: 216.1071454 | AO116: 226.9125027 | AP116: 238.2581278 | AQ116: 250.1710342 | AR116: 262.6795859 | AS116: 275.8135652 | AT116: 288.2251756 | AU116: 301.1953085 | AV116: 314.7490974 | AW116: 328.9128068 | AX116: 342.7271447 | AY116: 357.1216847 | AZ116: 371.4065521 | BA116: 386.2628142 | BB116: 401.7133268 | BC116: 415.7732932 | BD116: 430.3253585 | BE116: 445.386746 | BF116: 458.7483484 | BG116: 472.5107989 | BH116: 486.6861228 | BI116: 501.2867065 | BJ116: 516.3253077 | BK116: 531.815067 | BL116: 547.769519 | BM116: 564.2026045 | BN116: 581.1286827 | BO116: 598.5625431 | BP116: 616.5194194 | BQ116: 635.015002 | BR116: 654.0654521 | BS116: 673.6874156 | BT116: 693.8980381 | BU116: 714.7149793 | BV116: 736.1564286 | BW116: =BW75 -> 758.2411215 | BX116: 780.9883551
D117: Less: Depreciation | I117: =I88 -> 100 | J117: =J88 -> 107.2488635 | K117: =K88 -> 102.7973219 | L117: 78.44004597 | M117: 74.21518176 | N117: 74.32098494 | O117: 66.76126687 | P117: 58.33487588 | Q117: 82.07677673 | R117: 83.77511641 | S117: 111.5609335 | T117: 106.3192077 | U117: 119.0429622 | V117: 130.6444556 | W117: 95.1642544 | X117: 106.1504502 | Y117: 141.4160315 | Z117: 138.1748025 | AA117: 142.4311196 | AB117: 158.3238971 | AC117: 128.4240374 | AD117: 133.5498766 | AE117: 137.2916558 | AF117: 134.5211958 | AG117: 121.8127383 | AH117: 109.6067948 | AI117: 103.7269447 | AJ117: 124.5160449 | AK117: 125.2986033 | AL117: 107.3023379 | AM117: 123.9434507 | AN117: 144.3636506 | AO117: 172.2795171 | AP117: 167.7806432 | AQ117: 164.6895344 | AR117: 162.8732868 | AS117: 162.2176638 | AT117: 162.6248776 | AU117: 163.908626 | AV117: 166.0014953 | AW117: 168.8463437 | AX117: 172.3951061 | AY117: 176.534036 | AZ117: 181.2329958 | BA117: 186.4140617 | BB117: 192.0598929 | BC117: 198.1570153 | BD117: 204.5453538 | BE117: 211.2254119 | BF117: 218.198917 | BG117: 225.302345 | BH117: 232.5494652 | BI117: 239.953231 | BJ117: 247.5259079 | BK117: 255.2791877 | BL117: 263.2242878 | BM117: 271.3720403 | BN117: 279.7329698 | BO117: 288.3173634 | BP117: 297.1353321 | BQ117: 306.1968661 | BR117: 315.5118837 | BS117: 325.090276 | BT117: 334.9419457 | BU117: 345.0768436 | BV117: 355.5050007 | BW117: =BW88 -> 366.2365581 | BX117: 377.2817937
D118: EBIT | I118: =I116-I117 -> 200 | J118: =J116-J117 -> 220.227487 | K118: =K116-K117 -> 185.12927 | L118: 206.6635366 | M118: 265.1274574 | N118: 353.1870604 | O118: 400.6958771 | P118: 441.5560333 | Q118: 208.2146705 | R118: 213.291575 | S118: 167.5541938 | T118: 152.0486132 | U118: 92.22175145 | V118: 71.97703732 | W118: 122.4242954 | X118: 139.2178679 | Y118: 181.3512679 | Z118: 212.2545691 | AA118: 206.3828402 | AB118: 138.4536161 | AC118: 151.9163981 | AD118: 139.4291212 | AE118: 125.565021 | AF118: 127.5507664 | AG118: 129.5088108 | AH118: 174.1059851 | AI118: 184.8573461 | AJ118: 111.9931897 | AK118: 127.3177279 | AL118: 107.1813826 | AM118: 61.70422279 | AN118: 71.74349482 | AO118: 54.63298551 | AP118: 70.47748456 | AQ118: 85.48149982 | AR118: 99.80629913 | AS118: 113.5959014 | AT118: 125.600298 | AU118: 137.2866826 | AV118: 148.7476021 | AW118: 160.0664631 | AX118: 170.3320386 | AY118: 180.5876487 | AZ118: 190.1735563 | BA118: 199.8487525 | BB118: 209.6534339 | BC118: 217.6162779 | BD118: 225.7800046 | BE118: 234.1613341 | BF118: 240.5494315 | BG118: 247.2084539 | BH118: 254.1366576 | BI118: 261.3334755 | BJ118: 268.7993998 | BK118: 276.5358793 | BL118: 284.5452311 | BM118: 292.8305643 | BN118: 301.3957129 | BO118: 310.2451798 | BP118: 319.3840874 | BQ118: 328.818136 | BR118: 338.5535683 | BS118: 348.5971397 | BT118: 358.9560924 | BU118: 369.6381357 | BV118: 380.6514279 | BW118: =BW116-BW117 -> 392.0045634 | BX118: 403.7065614
D119: Less: Interest Expense | I119: =I113 -> 23.5 | J119: =J113 -> 22.5161569 | K119: =K113 -> 22.40646467 | L119: 18.73464826 | M119: 15.85608448 | N119: 16.46490457 | O119: 14.80423471 | P119: 15.45458593 | Q119: 17.25624951 | R119: 20.26899094 | S119: 23.02410885 | T119: 24.40014781 | U119: 23.40507269 | V119: 27.55286904 | W119: 21.17178833 | X119: 23.77216587 | Y119: 29.60831102 | Z119: 28.06499262 | AA119: 30.35180152 | AB119: 32.68685184 | AC119: 26.29981841 | AD119: 26.88077447 | AE119: 29.34065746 | AF119: 28.81417617 | AG119: 26.8586766 | AH119: 23.43206387 | AI119: 23.5085013 | AJ119: 24.62013474 | AK119: 27.13600246 | AL119: 23.91672644 | AM119: 24.40151011 | AN119: 28.88529283 | AO119: 17.3311757 | AP119: 15.59443473 | AQ119: 14.26843576 | AR119: 13.05787451 | AS119: 11.94497421 | AT119: 10.9139903 | AU119: 9.932385045 | AV119: 8.997880805 | AW119: 8.100168066 | AX119: 7.230008178 | AY119: 6.365808128 | AZ119: 5.507432879 | BA119: 4.639066822 | BB119: 3.760421749 | BC119: 2.866744558 | BD119: 1.926580425 | BE119: 0.9511280086 | BF119: 0 | BG119: 0 | BH119: 0 | BI119: 0 | BJ119: 0 | BK119: 0 | BL119: 0 | BM119: 0 | BN119: 0 | BO119: 0 | BP119: 0 | BQ119: 0 | BR119: 0 | BS119: 0 | BT119: 0 | BU119: 0 | BV119: 0 | BW119: =BW113 -> 0 | BX119: 0
D120: Add: Interest Income | I120: =I105 -> 1 | J120: =J105 -> 0.8331921014 | K120: =K105 -> 1.023500144 | L120: 1.023319531 | M120: 1.106524066 | N120: 1.200353793 | O120: 1.225990666 | P120: 1.293805378 | Q120: 0.9204470843 | R120: 0.756983831 | S120: 0.6559610706 | T120: 0.568153136 | U120: 0.5982401291 | V120: 0.6119889564 | W120: 0.6694687258 | X120: 0.671037913 | Y120: 0.5625523637 | Z120: 0.6150160648 | AA120: 0.6327887963 | AB120: 0.6110362127 | AC120: 0.507505461 | AD120: 0.5853995743 | AE120: 0.6411631549 | AF120: 0.7549685015 | AG120: 0.9480644673 | AH120: 0.5553524588 | AI120: 0.5815561838 | AJ120: 0.5584628812 | AK120: 0.6381408997 | AL120: 0.5281294309 | AM120: 0.6064099871 | AN120: 0.6062813564 | AO120: 0.6062813564 | AP120: 0.6062813564 | AQ120: 0.6062813564 | AR120: 0.6062813564 | AS120: 0.6062813564 | AT120: 0.6062813564 | AU120: 0.6062813564 | AV120: 0.6062813564 | AW120: 0.6062813564 | AX120: 0.6062813564 | AY120: 0.6062813564 | AZ120: 0.6062813564 | BA120: 0.6062813564 | BB120: 0.6062813564 | BC120: 0.6062813564 | BD120: 0.6062813564 | BE120: 0.6062813564 | BF120: 0.6269822461 | BG120: 0.9879581273 | BH120: 1.364476714 | BI120: 1.756606677 | BJ120: 2.164469012 | BK120: 2.588232354 | BL120: 3.028108928 | BM120: 3.484351065 | BN120: 3.957248204 | BO120: 4.447124334 | BP120: 4.95433581 | BQ120: 5.479269507 | BR120: 6.022341274 | BS120: 6.583994639 | BT120: 7.164699752 | BU120: 7.764952528 | BV120: 8.385273971 | BW120: =BW105 -> 9.02620966 | BX120: 9.688329374
D121: Net Income | I121: =I118-I119+I120 -> 177.5 | J121: =J118-J119+J120 -> 198.5445222 | K121: 163.7463055 | L121: 188.9522079 | M121: 250.377897 | N121: 337.9225096 | O121: 387.1176331 | P121: 427.3952528 | Q121: 191.878868 | R121: 193.7795679 | S121: 145.186046 | T121: 128.2166185 | U121: 69.41491889 | V121: 45.03615724 | W121: 101.9219758 | X121: 116.11674 | Y121: 152.3055092 | Z121: 184.8045926 | AA121: 176.6638275 | AB121: 106.3778005 | AC121: 126.1240852 | AD121: 113.1337463 | AE121: 96.86552674 | AF121: 99.49155869 | AG121: 103.5981987 | AH121: 151.2292737 | AI121: 161.930401 | AJ121: 87.93151786 | AK121: 100.8198664 | AL121: 83.79278559 | AM121: 37.90912267 | AN121: 43.46448335 | AO121: 37.90809117 | AP121: 55.48933119 | AQ121: 71.81934541 | AR121: 87.35470597 | AS121: 102.2572085 | AT121: 115.2925891 | AU121: 127.9605789 | AV121: 140.3560026 | AW121: 152.5725764 | AX121: 163.7083118 | AY121: 174.828122 | AZ121: 185.2724048 | BA121: 195.8159671 | BB121: 206.4992935 | BC121: 215.3558147 | BD121: 224.4597056 | BE121: 233.8164875 | BF121: 241.1764137 | BG121: 248.196412 | BH121: 255.5011343 | BI121: 263.0900822 | BJ121: 270.9638688 | BK121: 279.1241116 | BL121: 287.5733401 | BM121: 296.3149153 | BN121: 305.3529611 | BO121: 314.6923041 | BP121: 324.3384232 | BQ121: 334.2974055 | BR121: 344.5759096 | BS121: 355.1811343 | BT121: 366.1207922 | BU121: 377.4030882 | BV121: =BV118-BV119+BV120 -> 389.0367019 | BW121: 401.030773 | BX121: 413.3948908
D122: Shares | I122: =IF(I3,I31,H122) -> 100 | J122: =IF(J3,J31,I122) -> 100 | K122: 100 | L122: 100 | M122: 100 | N122: 100 | O122: 100 | P122: 100 | Q122: 100 | R122: 100 | S122: 100 | T122: 100 | U122: 100 | V122: 100 | W122: 100 | X122: 100 | Y122: 100 | Z122: 100 | AA122: 100 | AB122: 100 | AC122: 100 | AD122: 100 | AE122: 100 | AF122: 100 | AG122: 100 | AH122: 100 | AI122: 100 | AJ122: 100 | AK122: 100 | AL122: 100 | AM122: 100 | AN122: 100 | AO122: 100 | AP122: 100 | AQ122: 100 | AR122: 100 | AS122: 100 | AT122: 100 | AU122: 100 | AV122: 100 | AW122: 100 | AX122: 100 | AY122: 100 | AZ122: 100 | BA122: 100 | BB122: 100 | BC122: 100 | BD122: 100 | BE122: 100 | BF122: 100 | BG122: 100 | BH122: 100 | BI122: 100 | BJ122: 100 | BK122: 100 | BL122: 100 | BM122: 100 | BN122: 100 | BO122: 100 | BP122: 100 | BQ122: 100 | BR122: 100 | BS122: 100 | BT122: 100 | BU122: 100 | BV122: =IF(BV3,BV31,BU122) -> 100 | BW122: 100 | BX122: 100
D123: EPS | I123: =I121/I122 -> 1.775 | J123: =J121/J122 -> 1.985445222 | K123: 1.637463055 | L123: 1.889522079 | M123: 2.50377897 | N123: 3.379225096 | O123: 3.871176331 | P123: 4.273952528 | Q123: 1.91878868 | R123: 1.937795679 | S123: 1.45186046 | T123: 1.282166185 | U123: 0.6941491889 | V123: 0.4503615724 | W123: 1.019219758 | X123: 1.1611674 | Y123: 1.523055092 | Z123: 1.848045926 | AA123: 1.766638275 | AB123: 1.063778005 | AC123: 1.261240852 | AD123: 1.131337463 | AE123: 0.9686552674 | AF123: 0.9949155869 | AG123: 1.035981987 | AH123: 1.512292737 | AI123: 1.61930401 | AJ123: 0.8793151786 | AK123: 1.008198664 | AL123: 0.8379278559 | AM123: 0.3790912267 | AN123: 0.4346448335 | AO123: 0.3790809117 | AP123: 0.5548933119 | AQ123: 0.7181934541 | AR123: 0.8735470597 | AS123: 1.022572085 | AT123: 1.152925891 | AU123: 1.279605789 | AV123: 1.403560026 | AW123: 1.525725764 | AX123: 1.637083118 | AY123: 1.74828122 | AZ123: 1.852724048 | BA123: 1.958159671 | BB123: 2.064992935 | BC123: 2.153558147 | BD123: 2.244597056 | BE123: 2.338164875 | BF123: 2.411764137 | BG123: 2.48196412 | BH123: 2.555011343 | BI123: 2.630900822 | BJ123: 2.709638688 | BK123: 2.791241116 | BL123: 2.875733401 | BM123: 2.963149153 | BN123: 3.053529611 | BO123: 3.146923041 | BP123: 3.243384232 | BQ123: 3.342974055 | BR123: 3.445759096 | BS123: 3.551811343 | BT123: 3.661207922 | BU123: 3.774030882 | BV123: =BV121/BV122 -> 3.890367019 | BW123: 4.01030773 | BX123: 4.133948908
C125: Cash Flow
D126: Dividend Payout | H126: 0.6 | I126: =IF(I3,I30/I26,$H$126) -> 0.5 | J126: 0.5 | K126: 0.5 | L126: 0.5 | M126: 0.5 | N126: 0.5 | O126: 0.5 | P126: 0.5 | Q126: 0.5 | R126: 0.5 | S126: 0.5 | T126: 0.5 | U126: 0.5 | V126: 0.5 | W126: 0.5 | X126: 0.5 | Y126: 0.5 | Z126: 0.5 | AA126: 0.5 | AB126: 0.5 | AC126: 0.5 | AD126: 0.5 | AE126: 0.5 | AF126: 0.5 | AG126: 0.5 | AH126: 0.5 | AI126: 0.5 | AJ126: 0.5 | AK126: 0.5 | AL126: 0.5 | AM126: 0.5 | AN126: 0.5 | AO126: =IF(AO3,AO30/AO26,$H$126) -> 0.6 | AP126: 0.6 | AQ126: 0.6 | AR126: 0.6 | AS126: 0.6 | AT126: 0.6 | AU126: 0.6 | AV126: 0.6 | AW126: 0.6 | AX126: 0.6 | AY126: 0.6 | AZ126: 0.6 | BA126: 0.6 | BB126: 0.6 | BC126: 0.6 | BD126: 0.6 | BE126: 0.6 | BF126: 0.6 | BG126: 0.6 | BH126: 0.6 | BI126: 0.6 | BJ126: 0.6 | BK126: 0.6 | BL126: 0.6 | BM126: 0.6 | BN126: 0.6 | BO126: 0.6 | BP126: 0.6 | BQ126: 0.6 | BR126: 0.6 | BS126: 0.6 | BT126: 0.6 | BU126: 0.6 | BV126: 0.6 | BW126: 0.6 | BX126: 0.6
D128: EBITDA | I128: =I116 -> 300 | J128: 327.4763505 | K128: 287.9265919 | L128: 285.1035826 | M128: 339.3426392 | N128: 427.5080453 | O128: 467.457144 | P128: 499.8909092 | Q128: 290.2914472 | R128: 297.0666914 | S128: 279.1151273 | T128: 258.3678208 | U128: 211.2647136 | V128: 202.6214929 | W128: 217.5885498 | X128: 245.3683181 | Y128: 322.7672994 | Z128: 350.4293716 | AA128: 348.8139599 | AB128: 296.7775132 | AC128: 280.3404356 | AD128: 272.9789978 | AE128: 262.8566768 | AF128: 262.0719622 | AG128: 251.3215491 | AH128: 283.7127799 | AI128: 288.5842907 | AJ128: 236.5092346 | AK128: 252.6163312 | AL128: 214.4837205 | AM128: 185.6476735 | AN128: 216.1071454 | AO128: =AO116 -> 226.9125027 | AP128: 238.2581278 | AQ128: 250.1710342 | AR128: 262.6795859 | AS128: 275.8135652 | AT128: 288.2251756 | AU128: 301.1953085 | AV128: 314.7490974 | AW128: 328.9128068 | AX128: 342.7271447 | AY128: 357.1216847 | AZ128: 371.4065521 | BA128: 386.2628142 | BB128: 401.7133268 | BC128: 415.7732932 | BD128: 430.3253585 | BE128: 445.386746 | BF128: 458.7483484 | BG128: 472.5107989 | BH128: 486.6861228 | BI128: 501.2867065 | BJ128: 516.3253077 | BK128: 531.815067 | BL128: 547.769519 | BM128: 564.2026045 | BN128: 581.1286827 | BO128: 598.5625431 | BP128: 616.5194194 | BQ128: 635.015002 | BR128: 654.0654521 | BS128: 673.6874156 | BT128: 693.8980381 | BU128: 714.7149793 | BV128: 736.1564286 | BW128: 758.2411215 | BX128: 780.9883551
D129: Less: WC Changes | I129: =I84 -> 75 | J129: 15.86908762 | K129: -21.88743963 | L129: -3.705752346 | M129: 12.55976415 | N129: 38.04135155 | O129: -2.012725334 | P129: 7.108441295 | Q129: -50.3998655 | R129: 5.693811045 | S129: -12.48789101 | T129: -0.1868266247 | U129: -7.775776812 | V129: 1.839194834 | W129: -6.258235777 | X129: 6.944942076 | Y129: 19.34974531 | Z129: 8.915518055 | AA129: -1.403852938 | AB129: -17.00911166 | AC129: -5.109269406 | AD129: 1.159640549 | AE129: 10.46941976 | AF129: -15.19617866 | AG129: 8.312396746 | AH129: 3.097807691 | AI129: 4.217877702 | AJ129: -18.01876403 | AK129: 4.026774162 | AL129: -15.53315269 | AM129: 5.790988257 | AN129: 11.61486797 | AO129: =AO84 -> -6.596113631 | AP129: 2.821533636 | AQ129: 2.962610318 | AR129: 3.110740833 | AS129: 3.266277875 | AT129: 3.086632592 | AU129: 3.225531059 | AV129: 3.370679956 | AW129: 3.522360554 | AX129: 3.435475661 | AY129: 3.579765638 | AZ129: 3.552491234 | BA129: 3.694590883 | BB129: 3.842374518 | BC129: 3.496560812 | BD129: 3.61894044 | BE129: 3.745603355 | BF129: 3.322885262 | BG129: 3.42257182 | BH129: 3.525248975 | BI129: 3.631006444 | BJ129: 3.739936637 | BK129: 3.852134737 | BL129: 3.967698779 | BM129: 4.086729742 | BN129: 4.209331634 | BO129: 4.335611583 | BP129: 4.465679931 | BQ129: 4.599650329 | BR129: 4.737639839 | BS129: 4.879769034 | BT129: 5.026162105 | BU129: 5.176946968 | BV129: 5.332255377 | BW129: 5.492223038 | BX129: 5.656989729
E130: Cash From Operations | I130: =I128-I129 -> 225 | J130: =J128-J129 -> 311.6072629 | K130: =K128-K129 -> 309.8140316 | L130: 288.8093349 | M130: 326.782875 | N130: 389.4666938 | O130: 469.4698693 | P130: 492.7824679 | Q130: 340.6913127 | R130: 291.3728803 | S130: 291.6030184 | T130: 258.5546475 | U130: 219.0404904 | V130: 200.7822981 | W130: 223.8467856 | X130: 238.4233761 | Y130: 303.4175541 | Z130: 341.5138535 | AA130: 350.2178128 | AB130: 313.7866249 | AC130: 285.449705 | AD130: 271.8193572 | AE130: 252.387257 | AF130: 277.2681408 | AG130: 243.0091524 | AH130: 280.6149722 | AI130: 284.366413 | AJ130: 254.5279986 | AK130: 248.5895571 | AL130: 230.0168732 | AM130: 179.8566852 | AN130: 204.4922774 | AO130: 233.5086163 | AP130: 235.4365942 | AQ130: 247.2084239 | AR130: 259.5688451 | AS130: 272.5472873 | AT130: 285.138543 | AU130: 297.9697775 | AV130: 311.3784174 | AW130: 325.3904462 | AX130: 339.291669 | AY130: 353.5419191 | AZ130: 367.8540609 | BA130: 382.5682233 | BB130: 397.8709523 | BC130: 412.2767324 | BD130: 426.7064181 | BE130: 441.6411427 | BF130: 455.4254632 | BG130: 469.0882271 | BH130: 483.1608739 | BI130: 497.6557001 | BJ130: 512.5853711 | BK130: 527.9629322 | BL130: 543.8018202 | BM130: 560.1158748 | BN130: 576.919351 | BO130: 594.2269316 | BP130: 612.0537395 | BQ130: 630.4153517 | BR130: 649.3278122 | BS130: 668.8076466 | BT130: 688.871876 | BU130: 709.5380323 | BV130: 730.8241733 | BW130: =BW128-BW129 -> 752.7488985 | BX130: 775.3313654
D131: Less: Captial Expendtitures | I131: =I92 -> 130 | J131: 135.5235226 | K131: 132.3365185 | L131: 108.4720598 | M131: 88.67973629 | N131: 91.41728043 | O131: 80.28964693 | P131: 83.63533864 | Q131: 100.1998097 | R131: 121.9076513 | S131: 141.1292136 | T131: 151.21497 | U131: 144.3558508 | V131: 171.1377923 | W131: 128.9135307 | X131: 145.7955853 | Y131: 185.1408409 | Z131: 174.4272432 | AA131: 189.0604555 | AB131: 204.5210662 | AC131: 164.3512487 | AD131: 167.1148396 | AE131: 182.3791525 | AF131: 177.4775546 | AG131: 162.2565598 | AH131: 145.0888332 | AI131: 145.2450281 | AJ131: 152.7708583 | AK131: 168.0881843 | AL131: 148.5930392 | AM131: 150.7264859 | AN131: 179.8727457 | AO131: =AO92 -> 136.1475016 | AP131: 142.9548767 | AQ131: 150.1026205 | AR131: 157.6077515 | AS131: 165.4881391 | AT131: 172.9351054 | AU131: 180.7171851 | AV131: 188.8494584 | AW131: 197.3476841 | AX131: 205.6362868 | AY131: 214.2730108 | AZ131: 222.8439313 | BA131: 231.7576885 | BB131: 241.0279961 | BC131: 249.4639759 | BD131: 258.1952151 | BE131: 267.2320476 | BF131: 275.2490091 | BG131: 283.5064793 | BH131: 292.0116737 | BI131: 300.7720239 | BJ131: 309.7951846 | BK131: 319.0890402 | BL131: 328.6617114 | BM131: 338.5215627 | BN131: 348.6772096 | BO131: 359.1375259 | BP131: 369.9116517 | BQ131: 381.0090012 | BR131: 392.4392712 | BS131: 404.2124494 | BT131: 416.3388229 | BU131: 428.8289876 | BV131: 441.6938572 | BW131: 454.9446729 | BX131: 468.5930131
E132: Cash before Financing | I132: =I130-I131 -> 95 | J132: =J130-J131 -> 176.0837403 | K132: =K130-K131 -> 177.4775131 | L132: 180.3372751 | M132: 238.1031387 | N132: 298.0494134 | O132: 389.1802224 | P132: 409.1471293 | Q132: 240.4915029 | R132: 169.465229 | S132: 150.4738047 | T132: 107.3396775 | U132: 74.68463961 | V132: 29.6445058 | W132: 94.93325489 | X132: 92.62779076 | Y132: 118.2767131 | Z132: 167.0866104 | AA132: 161.1573573 | AB132: 109.2655587 | AC132: 121.0984563 | AD132: 104.7045176 | AE132: 70.00810456 | AF132: 99.79058627 | AG132: 80.75259261 | AH132: 135.526139 | AI132: 139.121385 | AJ132: 101.7571403 | AK132: 80.50137277 | AL132: 81.42383393 | AM132: 29.13019933 | AN132: 24.61953167 | AO132: 97.36111469 | AP132: 92.48171748 | AQ132: 97.10580335 | AR132: 101.9610935 | AS132: 107.0591482 | AT132: 112.2034377 | AU132: 117.2525923 | AV132: 122.528959 | AW132: 128.0427622 | AX132: 133.6553822 | AY132: 139.2689083 | AZ132: 145.0101296 | BA132: 150.8105348 | BB132: 156.8429562 | BC132: 162.8127565 | BD132: 168.511203 | BE132: 174.4090951 | BF132: 180.1764541 | BG132: 185.5817477 | BH132: 191.1492002 | BI132: 196.8836762 | BJ132: 202.7901865 | BK132: 208.873892 | BL132: 215.1401088 | BM132: 221.5943121 | BN132: 228.2421414 | BO132: 235.0894057 | BP132: 242.1420878 | BQ132: 249.4063505 | BR132: 256.888541 | BS132: 264.5951972 | BT132: 272.5330531 | BU132: 280.7090447 | BV132: 289.1303161 | BW132: =BW130-BW131 -> 297.8042256 | BX132: 306.7383523
D133: Less: Interest Expense | I133: =I119 -> 23.5 | J133: 22.5161569 | K133: 22.40646467 | L133: 18.73464826 | M133: 15.85608448 | N133: 16.46490457 | O133: 14.80423471 | P133: 15.45458593 | Q133: 17.25624951 | R133: 20.26899094 | S133: 23.02410885 | T133: 24.40014781 | U133: 23.40507269 | V133: 27.55286904 | W133: 21.17178833 | X133: 23.77216587 | Y133: 29.60831102 | Z133: 28.06499262 | AA133: 30.35180152 | AB133: 32.68685184 | AC133: 26.29981841 | AD133: 26.88077447 | AE133: 29.34065746 | AF133: 28.81417617 | AG133: 26.8586766 | AH133: 23.43206387 | AI133: 23.5085013 | AJ133: 24.62013474 | AK133: 27.13600246 | AL133: 23.91672644 | AM133: 24.40151011 | AN133: 28.88529283 | AO133: =AO119 -> 17.3311757 | AP133: 15.59443473 | AQ133: 14.26843576 | AR133: 13.05787451 | AS133: 11.94497421 | AT133: 10.9139903 | AU133: 9.932385045 | AV133: 8.997880805 | AW133: 8.100168066 | AX133: 7.230008178 | AY133: 6.365808128 | AZ133: 5.507432879 | BA133: 4.639066822 | BB133: 3.760421749 | BC133: 2.866744558 | BD133: 1.926580425 | BE133: 0.9511280086 | BF133: 0 | BG133: 0 | BH133: 0 | BI133: 0 | BJ133: 0 | BK133: 0 | BL133: 0 | BM133: 0 | BN133: 0 | BO133: 0 | BP133: 0 | BQ133: 0 | BR133: 0 | BS133: 0 | BT133: 0 | BU133: 0 | BV133: 0 | BW133: 0 | BX133: 0
D134: Add: Interest Income | I134: =I120 -> 1 | J134: 0.8331921014 | K134: 1.023500144 | L134: 1.023319531 | M134: 1.106524066 | N134: 1.200353793 | O134: 1.225990666 | P134: 1.293805378 | Q134: 0.9204470843 | R134: 0.756983831 | S134: 0.6559610706 | T134: 0.568153136 | U134: 0.5982401291 | V134: 0.6119889564 | W134: 0.6694687258 | X134: 0.671037913 | Y134: 0.5625523637 | Z134: 0.6150160648 | AA134: 0.6327887963 | AB134: 0.6110362127 | AC134: 0.507505461 | AD134: 0.5853995743 | AE134: 0.6411631549 | AF134: 0.7549685015 | AG134: 0.9480644673 | AH134: 0.5553524588 | AI134: 0.5815561838 | AJ134: 0.5584628812 | AK134: 0.6381408997 | AL134: 0.5281294309 | AM134: 0.6064099871 | AN134: 0.6062813564 | AO134: =AO120 -> 0.6062813564 | AP134: 0.6062813564 | AQ134: 0.6062813564 | AR134: 0.6062813564 | AS134: 0.6062813564 | AT134: 0.6062813564 | AU134: 0.6062813564 | AV134: 0.6062813564 | AW134: 0.6062813564 | AX134: 0.6062813564 | AY134: 0.6062813564 | AZ134: 0.6062813564 | BA134: 0.6062813564 | BB134: 0.6062813564 | BC134: 0.6062813564 | BD134: 0.6062813564 | BE134: 0.6062813564 | BF134: 0.6269822461 | BG134: 0.9879581273 | BH134: 1.364476714 | BI134: 1.756606677 | BJ134: 2.164469012 | BK134: 2.588232354 | BL134: 3.028108928 | BM134: 3.484351065 | BN134: 3.957248204 | BO134: 4.447124334 | BP134: 4.95433581 | BQ134: 5.479269507 | BR134: 6.022341274 | BS134: 6.583994639 | BT134: 7.164699752 | BU134: 7.764952528 | BV134: 8.385273971 | BW134: 9.02620966 | BX134: 9.688329374
D135: Less: Dividends | G135: Payout | I135: =MAX(I126*I121,0) -> 88.75 | J135: 99.27226108 | K135: 81.87315275 | L135: 94.47610393 | M135: 125.1889485 | N135: 168.9612548 | O135: 193.5588166 | P135: 213.6976264 | Q135: 95.93943402 | R135: 96.88978393 | S135: 72.59302301 | T135: 64.10830924 | U135: 34.70745944 | V135: 22.51807862 | W135: 50.96098791 | X135: 58.05836998 | Y135: 76.15275462 | Z135: 92.4022963 | AA135: 88.33191375 | AB135: 53.18890026 | AC135: 63.0620426 | AD135: 56.56687314 | AE135: 48.43276337 | AF135: 49.74577934 | AG135: 51.79909936 | AH135: 75.61463687 | AI135: 80.96520048 | AJ135: 43.96575893 | AK135: 50.40993318 | AL135: 41.89639279 | AM135: 18.95456133 | AN135: 21.73224167 | AO135: =MAX(AO126*AO121,0) -> 22.7448547 | AP135: 33.29359872 | AQ135: 43.09160725 | AR135: 52.41282358 | AS135: 61.35432512 | AT135: 69.17555343 | AU135: 76.77634733 | AV135: 84.21360158 | AW135: 91.54354583 | AX135: 98.22498708 | AY135: 104.8968732 | AZ135: 111.1634429 | BA135: 117.4895802 | BB135: 123.8995761 | BC135: 129.2134888 | BD135: 134.6758233 | BE135: 140.2898925 | BF135: 144.7058482 | BG135: 148.9178472 | BH135: 153.3006806 | BI135: 157.8540493 | BJ135: 162.5783213 | BK135: 167.474467 | BL135: 172.544004 | BM135: 177.7889492 | BN135: 183.2117766 | BO135: 188.8153825 | BP135: 194.6030539 | BQ135: 200.5784433 | BR135: 206.7455458 | BS135: 213.1086806 | BT135: 219.6724753 | BU135: 226.4418529 | BV135: 233.4220211 | BW135: 240.6184638 | BX135: 248.0369345
E136: Net Cash Flow | I136: =I132-I133+I134-I135 -> -16.25 | J136: =J132-J133+J134-J135 -> 55.12851441 | K136: =K132-K133+K134-K135 -> 74.22139581 | L136: 68.14984249 | M136: 98.16462981 | N136: 113.8236078 | O136: 182.0431618 | P136: 181.2887223 | Q136: 128.2162665 | R136: 53.06343796 | S136: 55.51263395 | T136: 19.39937356 | U136: 17.17034761 | V136: -19.8144529 | W136: 23.46994737 | X136: 11.46829283 | Y136: 13.07819987 | Z136: 47.23433751 | AA136: 43.1064308 | AB136: 24.00084281 | AC136: 32.24410078 | AD136: 21.84226961 | AE136: -7.124153119 | AF136: 21.98559926 | AG136: 3.042881122 | AH136: 37.03479075 | AI136: 35.22923938 | AJ136: 33.7297095 | AK136: 3.593578026 | AL136: 16.13884413 | AM136: -13.61946213 | AN136: -25.39172147 | AO136: 57.89136565 | AP136: 44.19996539 | AQ136: 40.3520417 | AR136: 37.09667678 | AS136: 34.36613023 | AT136: 32.72017528 | AU136: 31.15014133 | AV136: 29.92375797 | AW136: 29.00532962 | AX136: 28.80666831 | AY136: 28.6125083 | AZ136: 28.94553523 | BA136: 29.2881691 | BB136: 29.7892397 | BC136: 31.33880445 | BD136: 32.51508054 | BE136: 33.77435592 | BF136: 36.09758812 | BG136: 37.65185864 | BH136: 39.21299629 | BI136: 40.78623351 | BJ136: 42.37633418 | BK136: 43.98765744 | BL136: 45.6242137 | BM136: 47.28971394 | BN136: 48.98761299 | BO136: 50.72114755 | BP136: 52.49336975 | BQ136: 54.3071767 | BR136: 56.1653365 | BS136: 58.07051128 | BT136: 60.02527758 | BU136: 62.03214433 | BV136: 64.09356892 | BW136: =BW132-BW133+BW134-BW135 -> 66.2119714 | BX136: 68.38974722
D137: Add: Reduction in Cash when Negative | I137: =MIN(I100,MAX(-I136,0)) -> 0 | J137: 0 | K137: 0 | L137: 0 | M137: 0 | N137: 0 | O137: 0 | P137: 0 | Q137: 0 | R137: 0 | S137: 0 | T137: 0 | U137: 0 | V137: 19.8144529 | W137: 0 | X137: 0 | Y137: 0 | Z137: 0 | AA137: 0 | AB137: 0 | AC137: 0 | AD137: 0 | AE137: 7.124153119 | AF137: 0 | AG137: 0 | AH137: 0 | AI137: 0 | AJ137: 0 | AK137: 0 | AL137: 0 | AM137: 13.61946213 | AN137: 25.39172147 | AO137: =MIN(AO100,MAX(-AO136,0)) -> 0 | AP137: 0 | AQ137: 0 | AR137: 0 | AS137: 0 | AT137: 0 | AU137: 0 | AV137: 0 | AW137: 0 | AX137: 0 | AY137: 0 | AZ137: 0 | BA137: 0 | BB137: 0 | BC137: 0 | BD137: 0 | BE137: 0 | BF137: 0 | BG137: 0 | BH137: 0 | BI137: 0 | BJ137: 0 | BK137: 0 | BL137: 0 | BM137: 0 | BN137: 0 | BO137: 0 | BP137: 0 | BQ137: 0 | BR137: 0 | BS137: 0 | BT137: 0 | BU137: =MIN(BU100,MAX(-BU136,0)) -> 0 | BV137: 0 | BW137: 0 | BX137: 0
D138: Less: Reduction in Debt when Positive | I138: =MIN(I108,MAX(I136,0)) -> 0 | J138: 55.12851441 | K138: 74.22139581 | L138: 68.14984249 | M138: 98.16462981 | N138: 113.8236078 | O138: 182.0431618 | P138: 181.2887223 | Q138: 128.2162665 | R138: 53.06343796 | S138: 55.51263395 | T138: 19.39937356 | U138: 17.17034761 | V138: 0 | W138: 23.46994737 | X138: 11.46829283 | Y138: 13.07819987 | Z138: 47.23433751 | AA138: 43.1064308 | AB138: 24.00084281 | AC138: 32.24410078 | AD138: 21.84226961 | AE138: 0 | AF138: 21.98559926 | AG138: 3.042881122 | AH138: 37.03479075 | AI138: 35.22923938 | AJ138: 33.7297095 | AK138: 3.593578026 | AL138: 16.13884413 | AM138: 0 | AN138: 0 | AO138: =MIN(AO108,MAX(AO136,0)) -> 57.89136565 | AP138: 44.19996539 | AQ138: 40.3520417 | AR138: 37.09667678 | AS138: 34.36613023 | AT138: 32.72017528 | AU138: 31.15014133 | AV138: 29.92375797 | AW138: 29.00532962 | AX138: 28.80666831 | AY138: 28.6125083 | AZ138: 28.94553523 | BA138: 29.2881691 | BB138: 29.7892397 | BC138: 31.33880445 | BD138: 32.51508054 | BE138: 31.70426695 | BF138: 0 | BG138: 0 | BH138: 0 | BI138: 0 | BJ138: 0 | BK138: 0 | BL138: 0 | BM138: 0 | BN138: 0 | BO138: 0 | BP138: 0 | BQ138: 0 | BR138: 0 | BS138: 0 | BT138: 0 | BU138: 0 | BV138: 0 | BW138: 0 | BX138: 0
E139: Remaining Cash Flow | I139: =I136+I137-I138 -> -16.25 | J139: =J136+J137-J138 -> 0 | K139: =K136+K137-K138 -> 0 | L139: 0 | M139: 0 | N139: 0 | O139: 0 | P139: 0 | Q139: 0 | R139: 0 | S139: 0 | T139: 0 | U139: 0 | V139: 0 | W139: 0 | X139: 0 | Y139: 0 | Z139: 0 | AA139: 0 | AB139: 0 | AC139: 0 | AD139: 0 | AE139: 0 | AF139: 0 | AG139: 0 | AH139: 0 | AI139: 0 | AJ139: 0 | AK139: 0 | AL139: 0 | AM139: 0 | AN139: 0 | AO139: 0 | AP139: 0 | AQ139: 0 | AR139: 0 | AS139: 0 | AT139: 0 | AU139: 0 | AV139: 0 | AW139: 0 | AX139: 0 | AY139: 0 | AZ139: 0 | BA139: 0 | BB139: 0 | BC139: 0 | BD139: 0 | BE139: 2.070088966 | BF139: 36.09758812 | BG139: 37.65185864 | BH139: 39.21299629 | BI139: 40.78623351 | BJ139: 42.37633418 | BK139: 43.98765744 | BL139: 45.6242137 | BM139: 47.28971394 | BN139: 48.98761299 | BO139: 50.72114755 | BP139: 52.49336975 | BQ139: 54.3071767 | BR139: 56.1653365 | BS139: 58.07051128 | BT139: 60.02527758 | BU139: 62.03214433 | BV139: 64.09356892 | BW139: =BW136+BW137-BW138 -> 66.2119714 | BX139: 68.38974722
D140: Less: Addition in Cash when Positive | I140: =MAX(I139,0) -> 0 | J140: =MAX(J139,0) -> 0 | K140: =MAX(K139,0) -> 0 | L140: 0 | M140: 0 | N140: 0 | O140: 0 | P140: 0 | Q140: 0 | R140: 0 | S140: 0 | T140: 0 | U140: 0 | V140: 0 | W140: 0 | X140: 0 | Y140: 0 | Z140: 0 | AA140: 0 | AB140: 0 | AC140: 0 | AD140: 0 | AE140: 0 | AF140: 0 | AG140: 0 | AH140: 0 | AI140: 0 | AJ140: 0 | AK140: 0 | AL140: 0 | AM140: 0 | AN140: 0 | AO140: 0 | AP140: 0 | AQ140: 0 | AR140: 0 | AS140: 0 | AT140: 0 | AU140: 0 | AV140: 0 | AW140: 0 | AX140: 0 | AY140: 0 | AZ140: 0 | BA140: 0 | BB140: 0 | BC140: 0 | BD140: 0 | BE140: 2.070088966 | BF140: 36.09758812 | BG140: 37.65185864 | BH140: 39.21299629 | BI140: 40.78623351 | BJ140: 42.37633418 | BK140: 43.98765744 | BL140: 45.6242137 | BM140: 47.28971394 | BN140: 48.98761299 | BO140: 50.72114755 | BP140: 52.49336975 | BQ140: 54.3071767 | BR140: 56.1653365 | BS140: 58.07051128 | BT140: 60.02527758 | BU140: 62.03214433 | BV140: 64.09356892 | BW140: =MAX(BW139,0) -> 66.2119714 | BX140: 68.38974722
D141: Add: Increase in Debt when Negative | I141: =MAX(-I139,0) -> 16.25 | J141: =MAX(-J139,0) -> 0 | K141: =MAX(-K139,0) -> 0 | L141: 0 | M141: 0 | N141: 0 | O141: 0 | P141: 0 | Q141: 0 | R141: 0 | S141: 0 | T141: 0 | U141: 0 | V141: 0 | W141: 0 | X141: 0 | Y141: 0 | Z141: 0 | AA141: 0 | AB141: 0 | AC141: 0 | AD141: 0 | AE141: 0 | AF141: 0 | AG141: 0 | AH141: 0 | AI141: 0 | AJ141: 0 | AK141: 0 | AL141: 0 | AM141: 0 | AN141: 0 | AO141: 0 | AP141: 0 | AQ141: 0 | AR141: 0 | AS141: 0 | AT141: 0 | AU141: 0 | AV141: 0 | AW141: 0 | AX141: 0 | AY141: 0 | AZ141: 0 | BA141: 0 | BB141: 0 | BC141: 0 | BD141: 0 | BE141: 0 | BF141: 0 | BG141: 0 | BH141: 0 | BI141: 0 | BJ141: 0 | BK141: 0 | BL141: 0 | BM141: 0 | BN141: 0 | BO141: 0 | BP141: 0 | BQ141: 0 | BR141: 0 | BS141: 0 | BT141: 0 | BU141: 0 | BV141: 0 | BW141: =MAX(-BW139,0) -> 0 | BX141: 0
C143: Balance Sheet
E144: Assets
F145: Cash | I145: =I103 -> 100 | J145: 83.31921014 | K145: 102.3500144 | L145: 102.3319531 | M145: 110.6524066 | N145: 120.0353793 | O145: 122.5990666 | P145: 129.3805378 | Q145: 92.04470843 | R145: 75.6983831 | S145: 65.59610706 | T145: 56.8153136 | U145: 59.82401291 | V145: 61.19889564 | W145: 66.94687258 | X145: 67.1037913 | Y145: 56.25523637 | Z145: 61.50160648 | AA145: 63.27887963 | AB145: 61.10362127 | AC145: 50.7505461 | AD145: 58.53995743 | AE145: 64.11631549 | AF145: 75.49685015 | AG145: 94.80644673 | AH145: 55.53524588 | AI145: 58.15561838 | AJ145: 55.84628812 | AK145: 63.81408997 | AL145: 52.81294309 | AM145: 60.64099871 | AN145: 60.62813564 | AO145: =AO103 -> 60.62813564 | AP145: 60.62813564 | AQ145: 60.62813564 | AR145: 60.62813564 | AS145: 60.62813564 | AT145: 60.62813564 | AU145: 60.62813564 | AV145: 60.62813564 | AW145: 60.62813564 | AX145: 60.62813564 | AY145: 60.62813564 | AZ145: 60.62813564 | BA145: 60.62813564 | BB145: 60.62813564 | BC145: 60.62813564 | BD145: 60.62813564 | BE145: 62.69822461 | BF145: 98.79581273 | BG145: 136.4476714 | BH145: 175.6606677 | BI145: 216.4469012 | BJ145: 258.8232354 | BK145: 302.8108928 | BL145: 348.4351065 | BM145: 395.7248204 | BN145: 444.7124334 | BO145: 495.433581 | BP145: 547.9269507 | BQ145: 602.2341274 | BR145: 658.3994639 | BS145: 716.4699752 | BT145: 776.4952528 | BU145: 838.5273971 | BV145: 902.620966 | BW145: 968.8329374 | BX145: 1037.222685
F146: Accounts Receivable | I146: =I83 -> 75 | J146: 90.86908762 | K146: 68.98164799 | L146: 65.27589564 | M146: 77.83565979 | N146: 115.8770113 | O146: 113.864286 | P146: 120.9727273 | Q146: 70.5728618 | R146: 76.26667284 | S146: 63.77878184 | T146: 63.59195521 | U146: 55.8161784 | V146: 57.65537323 | W146: 51.39713746 | X146: 58.34207953 | Y146: 77.69182485 | Z146: 86.6073429 | AA146: 85.20348996 | AB146: 68.1943783 | AC146: 63.08510889 | AD146: 64.24474944 | AE146: 74.7141692 | AF146: 59.51799054 | AG146: 67.83038729 | AH146: 70.92819498 | AI146: 75.14607268 | AJ146: 57.12730865 | AK146: 61.15408281 | AL146: 45.62093012 | AM146: 51.41191837 | AN146: 63.02678635 | AO146: =AO83 -> 56.43067272 | AP146: 59.25220635 | AQ146: 62.21481667 | AR146: 65.3255575 | AS146: 68.59183538 | AT146: 71.67846797 | AU146: 74.90399903 | AV146: 78.27467899 | AW146: 81.79703954 | AX146: 85.2325152 | AY146: 88.81228084 | AZ146: 92.36477207 | BA146: 96.05936296 | BB146: 99.90173747 | BC146: 103.3982983 | BD146: 107.0172387 | BE146: 110.7628421 | BF146: 114.0857273 | BG146: 117.5082992 | BH146: 121.0335481 | BI146: 124.6645546 | BJ146: 128.4044912 | BK146: 132.256626 | BL146: 136.2243247 | BM146: 140.3110545 | BN146: 144.5203861 | BO146: 148.8559977 | BP146: 153.3216776 | BQ146: 157.921328 | BR146: 162.6589678 | BS146: 167.5387368 | BT146: 172.5648989 | BU146: 177.7418459 | BV146: 183.0741013 | BW146: 188.5663243 | BX146: 194.223314
F147: Net Plant | I147: =I94 -> 1000 | J147: 1042.488635 | K147: 1017.973219 | L147: 834.4004597 | M147: 682.1518176 | N147: 703.2098494 | O147: 617.6126687 | P147: 643.3487588 | Q147: 770.7677673 | R147: 937.7511641 | S147: 1085.609335 | T147: 1163.192077 | U147: 1110.429622 | V147: 1316.444556 | W147: 991.642544 | X147: 1121.504502 | Y147: 1424.160315 | Z147: 1341.748025 | AA147: 1454.311196 | AB147: 1573.238971 | AC147: 1264.240374 | AD147: 1285.498766 | AE147: 1402.916558 | AF147: 1365.211958 | AG147: 1248.127383 | AH147: 1116.067948 | AI147: 1117.269447 | AJ147: 1175.160449 | AK147: 1292.986033 | AL147: 1143.023379 | AM147: 1159.434507 | AN147: 1383.636506 | AO147: =AO94 -> 1347.50449 | AP147: 1322.678724 | AQ147: 1308.09181 | AR147: 1302.826275 | AS147: 1306.09675 | AT147: 1316.406978 | AU147: 1333.215537 | AV147: 1356.0635 | AW147: 1384.56484 | AX147: 1417.806021 | AY147: 1455.544996 | AZ147: 1497.155931 | BA147: 1542.499558 | BB147: 1591.467661 | BC147: 1642.774622 | BD147: 1696.424483 | BE147: 1752.431119 | BF147: 1809.481211 | BG147: 1867.685345 | BH147: 1927.147554 | BI147: 1987.966347 | BJ147: 2050.235623 | BK147: 2114.045476 | BL147: 2179.482899 | BM147: 2246.632422 | BN147: 2315.576662 | BO147: 2386.396824 | BP147: 2459.173144 | BQ147: 2533.985279 | BR147: 2610.912666 | BS147: 2690.03484 | BT147: 2771.431717 | BU147: 2855.183861 | BV147: 2941.372718 | BW147: 3030.080832 | BX147: 3121.392052
F148: Total | I148: =SUM(I145:I147) -> 1175 | J148: =SUM(J145:J147) -> 1216.676933 | K148: =SUM(K145:K147) -> 1189.304882 | L148: 1002.008309 | M148: 870.639884 | N148: 939.1222401 | O148: 854.0760213 | P148: 893.7020239 | Q148: 933.3853375 | R148: 1089.71622 | S148: 1214.984224 | T148: 1283.599346 | U148: 1226.069813 | V148: 1435.298825 | W148: 1109.986554 | X148: 1246.950373 | Y148: 1558.107376 | Z148: 1489.856974 | AA148: 1602.793566 | AB148: 1702.53697 | AC148: 1378.076029 | AD148: 1408.283473 | AE148: 1541.747042 | AF148: 1500.226799 | AG148: 1410.764217 | AH148: 1242.531388 | AI148: 1250.571138 | AJ148: 1288.134046 | AK148: 1417.954206 | AL148: 1241.457252 | AM148: 1271.487424 | AN148: 1507.291428 | AO148: =SUM(AO145:AO147) -> 1464.563299 | AP148: 1442.559066 | AQ148: 1430.934762 | AR148: 1428.779968 | AS148: 1435.316721 | AT148: 1448.713581 | AU148: 1468.747671 | AV148: 1494.966314 | AW148: 1526.990015 | AX148: 1563.666672 | AY148: 1604.985412 | AZ148: 1650.148839 | BA148: 1699.187057 | BB148: 1751.997534 | BC148: 1806.801056 | BD148: 1864.069858 | BE148: 1925.892186 | BF148: 2022.362751 | BG148: 2121.641316 | BH148: 2223.84177 | BI148: 2329.077803 | BJ148: 2437.46335 | BK148: 2549.112995 | BL148: 2664.142331 | BM148: 2782.668297 | BN148: 2904.809481 | BO148: 3030.686403 | BP148: 3160.421772 | BQ148: 3294.140734 | BR148: 3431.971098 | BS148: 3574.043552 | BT148: 3720.491869 | BU148: 3871.453104 | BV148: 4027.067785 | BW148: =SUM(BW145:BW147) -> 4187.480094 | BX148: 4352.83805
E150: Liabilities and Capital
F151: Debt | I151: =I111 -> 470 | J151: 450.3231381 | K151: 448.1292934 | L151: 374.6929651 | M151: 317.1216897 | N151: 329.2980915 | O151: 296.0846941 | P151: 309.0917186 | Q151: 345.1249903 | R151: 405.3798189 | S151: 460.482177 | T151: 488.0029562 | U151: 468.1014538 | V151: 551.0573807 | W151: 423.4357666 | X151: 475.4433174 | Y151: 592.1662205 | Z151: 561.2998524 | AA151: 607.0360304 | AB151: 653.7370367 | AC151: 525.9963682 | AD151: 537.6154893 | AE151: 586.8131492 | AF151: 576.2835233 | AG151: 537.1735319 | AH151: 468.6412774 | AI151: 470.170026 | AJ151: 492.4026948 | AK151: 542.7200492 | AL151: 478.3345287 | AM151: 488.0302023 | AN151: 577.7058565 | AO151: =AO111 -> 519.8144909 | AP151: 475.6145255 | AQ151: 435.2624838 | AR151: 398.165807 | AS151: 363.7996768 | AT151: 331.0795015 | AU151: 299.9293602 | AV151: 270.0056022 | AW151: 241.0002726 | AX151: 212.1936043 | AY151: 183.581096 | AZ151: 154.6355607 | BA151: 125.3473916 | BB151: 95.55815194 | BC151: 64.21934749 | BD151: 31.70426695 | BE151: 0 | BF151: 0 | BG151: 0 | BH151: 0 | BI151: 0 | BJ151: 0 | BK151: 0 | BL151: 0 | BM151: 0 | BN151: 0 | BO151: 0 | BP151: 0 | BQ151: 0 | BR151: 0 | BS151: 0 | BT151: 0 | BU151: 0 | BV151: 0 | BW151: 0 | BX151: 0
F152: Equity | I152: =I159 -> 705 | J152: =J159 -> 766.3537947 | K152: =K159 -> 741.1755881 | L152: 627.3153434 | M152: 553.5181943 | N152: 609.8241486 | O152: 557.9913272 | P152: 584.6103053 | Q152: 588.2603472 | R152: 684.3364011 | S152: 754.5020474 | T152: 795.5963895 | U152: 757.9683591 | V152: 884.2414443 | W152: 686.5507874 | X152: 771.5070557 | Y152: 965.9411555 | Z152: 928.5571215 | AA152: 995.7575355 | AB152: 1048.799933 | AC152: 852.0796611 | AD152: 870.6679835 | AE152: 954.9338931 | AF152: 923.9432755 | AG152: 873.5906851 | AH152: 773.8901111 | AI152: 780.4011116 | AJ152: 795.7313508 | AK152: 875.2341567 | AL152: 763.1227232 | AM152: 783.4572218 | AN152: 929.5855712 | AO152: 944.7488076 | AP152: 966.9445401 | AQ152: 995.6722783 | AR152: 1030.614161 | AS152: 1071.517044 | AT152: 1117.63408 | AU152: 1168.818311 | AV152: 1224.960712 | AW152: 1285.989743 | AX152: 1351.473068 | AY152: 1421.404316 | AZ152: 1495.513278 | BA152: 1573.839665 | BB152: 1656.439383 | BC152: 1742.581708 | BD152: 1832.365591 | BE152: 1925.892186 | BF152: 2022.362751 | BG152: 2121.641316 | BH152: 2223.84177 | BI152: 2329.077803 | BJ152: 2437.46335 | BK152: 2549.112995 | BL152: 2664.142331 | BM152: 2782.668297 | BN152: 2904.809481 | BO152: 3030.686403 | BP152: 3160.421772 | BQ152: 3294.140734 | BR152: 3431.971098 | BS152: 3574.043552 | BT152: 3720.491869 | BU152: 3871.453104 | BV152: 4027.067785 | BW152: =BW159 -> 4187.480094 | BX152: 4352.83805
F153: Total | I153: =SUM(I151:I152) -> 1175 | J153: =SUM(J151:J152) -> 1216.676933 | K153: =SUM(K151:K152) -> 1189.304882 | L153: 1002.008309 | M153: 870.639884 | N153: 939.1222401 | O153: 854.0760213 | P153: 893.7020239 | Q153: 933.3853375 | R153: 1089.71622 | S153: 1214.984224 | T153: 1283.599346 | U153: 1226.069813 | V153: 1435.298825 | W153: 1109.986554 | X153: 1246.950373 | Y153: 1558.107376 | Z153: 1489.856974 | AA153: 1602.793566 | AB153: 1702.53697 | AC153: 1378.076029 | AD153: 1408.283473 | AE153: 1541.747042 | AF153: 1500.226799 | AG153: 1410.764217 | AH153: 1242.531388 | AI153: 1250.571138 | AJ153: 1288.134046 | AK153: 1417.954206 | AL153: 1241.457252 | AM153: 1271.487424 | AN153: 1507.291428 | AO153: =SUM(AO151:AO152) -> 1464.563299 | AP153: 1442.559066 | AQ153: 1430.934762 | AR153: 1428.779968 | AS153: 1435.316721 | AT153: 1448.713581 | AU153: 1468.747671 | AV153: 1494.966314 | AW153: 1526.990015 | AX153: 1563.666672 | AY153: 1604.985412 | AZ153: 1650.148839 | BA153: 1699.187057 | BB153: 1751.997534 | BC153: 1806.801056 | BD153: 1864.069858 | BE153: 1925.892186 | BF153: 2022.362751 | BG153: 2121.641316 | BH153: 2223.84177 | BI153: 2329.077803 | BJ153: 2437.46335 | BK153: 2549.112995 | BL153: 2664.142331 | BM153: 2782.668297 | BN153: 2904.809481 | BO153: 3030.686403 | BP153: 3160.421772 | BQ153: 3294.140734 | BR153: 3431.971098 | BS153: 3574.043552 | BT153: 3720.491869 | BU153: 3871.453104 | BV153: 4027.067785 | BW153: =SUM(BW151:BW152) -> 4187.480094 | BX153: 4352.83805
D155: Equity Balance
E156: Opening Balance | I156: =H159 -> 0 | J156: =I159 -> 705 | K156: =J159 -> 766.3537947 | L156: 741.1755881 | M156: 627.3153434 | N156: 553.5181943 | O156: 609.8241486 | P156: 557.9913272 | Q156: 584.6103053 | R156: 588.2603472 | S156: 684.3364011 | T156: 754.5020474 | U156: 795.5963895 | V156: 757.9683591 | W156: 884.2414443 | X156: 686.5507874 | Y156: 771.5070557 | Z156: 965.9411555 | AA156: 928.5571215 | AB156: 995.7575355 | AC156: 1048.799933 | AD156: 852.0796611 | AE156: 870.6679835 | AF156: 954.9338931 | AG156: 923.9432755 | AH156: 873.5906851 | AI156: 773.8901111 | AJ156: 780.4011116 | AK156: 795.7313508 | AL156: 875.2341567 | AM156: 763.1227232 | AN156: 783.4572218 | AO156: 929.5855712 | AP156: 944.7488076 | AQ156: 966.9445401 | AR156: 995.6722783 | AS156: 1030.614161 | AT156: 1071.517044 | AU156: 1117.63408 | AV156: 1168.818311 | AW156: 1224.960712 | AX156: 1285.989743 | AY156: 1351.473068 | AZ156: 1421.404316 | BA156: 1495.513278 | BB156: 1573.839665 | BC156: 1656.439383 | BD156: 1742.581708 | BE156: 1832.365591 | BF156: 1925.892186 | BG156: 2022.362751 | BH156: 2121.641316 | BI156: 2223.84177 | BJ156: 2329.077803 | BK156: 2437.46335 | BL156: 2549.112995 | BM156: 2664.142331 | BN156: 2782.668297 | BO156: 2904.809481 | BP156: 3030.686403 | BQ156: 3160.421772 | BR156: 3294.140734 | BS156: 3431.971098 | BT156: 3574.043552 | BU156: 3720.491869 | BV156: 3871.453104 | BW156: =BV159 -> 4027.067785 | BX156: 4187.480094
E157: Add: Net Income | I157: =I121 -> 177.5 | J157: 198.5445222 | K157: 163.7463055 | L157: 188.9522079 | M157: 250.377897 | N157: 337.9225096 | O157: 387.1176331 | P157: 427.3952528 | Q157: 191.878868 | R157: 193.7795679 | S157: 145.186046 | T157: 128.2166185 | U157: 69.41491889 | V157: 45.03615724 | W157: 101.9219758 | X157: 116.11674 | Y157: 152.3055092 | Z157: 184.8045926 | AA157: 176.6638275 | AB157: 106.3778005 | AC157: 126.1240852 | AD157: 113.1337463 | AE157: 96.86552674 | AF157: 99.49155869 | AG157: 103.5981987 | AH157: 151.2292737 | AI157: 161.930401 | AJ157: 87.93151786 | AK157: 100.8198664 | AL157: 83.79278559 | AM157: 37.90912267 | AN157: 43.46448335 | AO157: =AO121 -> 37.90809117 | AP157: 55.48933119 | AQ157: 71.81934541 | AR157: 87.35470597 | AS157: 102.2572085 | AT157: 115.2925891 | AU157: 127.9605789 | AV157: 140.3560026 | AW157: 152.5725764 | AX157: 163.7083118 | AY157: 174.828122 | AZ157: 185.2724048 | BA157: 195.8159671 | BB157: 206.4992935 | BC157: 215.3558147 | BD157: 224.4597056 | BE157: 233.8164875 | BF157: 241.1764137 | BG157: 248.196412 | BH157: 255.5011343 | BI157: 263.0900822 | BJ157: 270.9638688 | BK157: 279.1241116 | BL157: 287.5733401 | BM157: 296.3149153 | BN157: 305.3529611 | BO157: 314.6923041 | BP157: 324.3384232 | BQ157: 334.2974055 | BR157: 344.5759096 | BS157: 355.1811343 | BT157: 366.1207922 | BU157: 377.4030882 | BV157: 389.0367019 | BW157: 401.030773 | BX157: 413.3948908
E158: Less: Dividends | I158: =I135 -> 88.75 | J158: =J135 -> 99.27226108 | K158: =K135 -> 81.87315275 | L158: 94.47610393 | M158: 125.1889485 | N158: 168.9612548 | O158: 193.5588166 | P158: 213.6976264 | Q158: 95.93943402 | R158: 96.88978393 | S158: 72.59302301 | T158: 64.10830924 | U158: 34.70745944 | V158: 22.51807862 | W158: 50.96098791 | X158: 58.05836998 | Y158: 76.15275462 | Z158: 92.4022963 | AA158: 88.33191375 | AB158: 53.18890026 | AC158: 63.0620426 | AD158: 56.56687314 | AE158: 48.43276337 | AF158: 49.74577934 | AG158: 51.79909936 | AH158: 75.61463687 | AI158: 80.96520048 | AJ158: 43.96575893 | AK158: 50.40993318 | AL158: 41.89639279 | AM158: 18.95456133 | AN158: 21.73224167 | AO158: 22.7448547 | AP158: 33.29359872 | AQ158: 43.09160725 | AR158: 52.41282358 | AS158: 61.35432512 | AT158: 69.17555343 | AU158: 76.77634733 | AV158: 84.21360158 | AW158: 91.54354583 | AX158: 98.22498708 | AY158: 104.8968732 | AZ158: 111.1634429 | BA158: 117.4895802 | BB158: 123.8995761 | BC158: 129.2134888 | BD158: 134.6758233 | BE158: 140.2898925 | BF158: 144.7058482 | BG158: 148.9178472 | BH158: 153.3006806 | BI158: 157.8540493 | BJ158: 162.5783213 | BK158: 167.474467 | BL158: 172.544004 | BM158: 177.7889492 | BN158: 183.2117766 | BO158: 188.8153825 | BP158: 194.6030539 | BQ158: 200.5784433 | BR158: 206.7455458 | BS158: 213.1086806 | BT158: 219.6724753 | BU158: 226.4418529 | BV158: 233.4220211 | BW158: =BW135 -> 240.6184638 | BX158: 248.0369345
E159: Closining Balance | I159: =IF(I3,I17,I156+I157-I158) -> 705 | J159: 766.3537947 | K159: 741.1755881 | L159: 627.3153434 | M159: 553.5181943 | N159: 609.8241486 | O159: 557.9913272 | P159: 584.6103053 | Q159: 588.2603472 | R159: 684.3364011 | S159: 754.5020474 | T159: 795.5963895 | U159: 757.9683591 | V159: 884.2414443 | W159: 686.5507874 | X159: 771.5070557 | Y159: 965.9411555 | Z159: 928.5571215 | AA159: 995.7575355 | AB159: 1048.799933 | AC159: 852.0796611 | AD159: 870.6679835 | AE159: 954.9338931 | AF159: 923.9432755 | AG159: 873.5906851 | AH159: 773.8901111 | AI159: 780.4011116 | AJ159: 795.7313508 | AK159: 875.2341567 | AL159: 763.1227232 | AM159: 783.4572218 | AN159: 929.5855712 | AO159: =IF(AO3,AO17,AO156+AO157-AO158) -> 944.7488076 | AP159: 966.9445401 | AQ159: 995.6722783 | AR159: 1030.614161 | AS159: 1071.517044 | AT159: 1117.63408 | AU159: 1168.818311 | AV159: 1224.960712 | AW159: 1285.989743 | AX159: 1351.473068 | AY159: 1421.404316 | AZ159: 1495.513278 | BA159: 1573.839665 | BB159: 1656.439383 | BC159: 1742.581708 | BD159: 1832.365591 | BE159: 1925.892186 | BF159: 2022.362751 | BG159: 2121.641316 | BH159: 2223.84177 | BI159: 2329.077803 | BJ159: 2437.46335 | BK159: 2549.112995 | BL159: 2664.142331 | BM159: 2782.668297 | BN159: 2904.809481 | BO159: 3030.686403 | BP159: 3160.421772 | BQ159: 3294.140734 | BR159: 3431.971098 | BS159: 3574.043552 | BT159: 3720.491869 | BU159: =IF(BU3,BU17,BU156+BU157-BU158) -> 3871.453104 | BV159: 4027.067785 | BW159: 4187.480094 | BX159: 4352.83805
F161: Difference | I161: =I153-I148 -> 0 | J161: =J153-J148 -> 0 | K161: 0 | L161: 0 | M161: 0 | N161: 0 | O161: 0 | P161: 0 | Q161: 0 | R161: 0 | S161: 0 | T161: 0 | U161: 0 | V161: 0 | W161: 0 | X161: 0 | Y161: 0 | Z161: 0 | AA161: 0 | AB161: 0 | AC161: 0 | AD161: 0 | AE161: 0 | AF161: 0 | AG161: 0 | AH161: 0 | AI161: 0 | AJ161: 0 | AK161: 0 | AL161: 0 | AM161: 0 | AN161: 0 | AO161: 0 | AP161: 0 | AQ161: 0 | AR161: 0 | AS161: 0 | AT161: 0 | AU161: 0 | AV161: 0 | AW161: 0 | AX161: 0 | AY161: 0 | AZ161: 0 | BA161: 0 | BB161: 0 | BC161: 0 | BD161: 0 | BE161: 0 | BF161: 0 | BG161: 0 | BH161: 0 | BI161: 0 | BJ161: 0 | BK161: 0 | BL161: 0 | BM161: 0 | BN161: 0 | BO161: 0 | BP161: 0 | BQ161: 0 | BR161: 0 | BS161: 0 | BT161: 0 | BU161: 0 | BV161: =BV153-BV148 -> 0 | BW161: 0 | BX161: 0
A163: 1 | B163: =MATCH(A163,B:B,0) -> 40 | F163: =INDEX(F:F,$B163) -> Revenue Growth | I163: =INDEX(I:I,$B163) -> 0 | J163: 0.0915878349 | K163: -0.1207713426 | L163: -0.009804615001 | M163: 0.1902433358 | N163: 0.2598123431 | O163: 0.09344642539 | P163: 0.06938339824 | Q163: -0.4192904054 | R163: 0.02333945504 | S163: =INDEX(S:S,$B163) -> -0.06042940711 | T163: -0.07433243299 | U163: -0.1823102703 | V163: -0.04091180452 | W163: 0.07386707439 | X163: 0.1276710945 | Y163: 0.3154399958 | Z163: 0.08570283381 | AA163: -0.004609806946 | AB163: -0.1491810898 | AC163: =INDEX(AC:AC,$B163) -> -0.05538518551 | AD163: -0.02625892262 | AE163: -0.03708095145 | AF163: -0.00298533272 | AG163: -0.04102084377 | AH163: 0.1288836189 | AI163: 0.01717057233 | AJ163: -0.1804500723 | AK163: 0.06810345767 | AL163: -0.150950695 | AM163: =INDEX(AM:AM,$B163) -> -0.1344439891 | AN163: 0.1640713903 | AO163: 0.05 | AP163: 0.05 | AQ163: 0.05 | AR163: 0.05 | AS163: 0.05 | AT163: 0.045 | AU163: 0.045 | AV163: 0.045 | AW163: =INDEX(AW:AW,$B163) -> 0.045 | AX163: 0.042 | AY163: 0.042 | AZ163: 0.04 | BA163: 0.04 | BB163: 0.04 | BC163: 0.035 | BD163: 0.035 | BE163: 0.035 | BF163: 0.03 | BG163: =INDEX(BG:BG,$B163) -> 0.03 | BH163: 0.03 | BI163: 0.03 | BJ163: 0.03 | BK163: 0.03 | BL163: 0.03 | BM163: 0.03 | BN163: 0.03 | BO163: 0.03 | BP163: 0.03 | BQ163: =INDEX(BQ:BQ,$B163) -> 0.03 | BR163: 0.03 | BS163: 0.03 | BT163: 0.03 | BU163: 0.03 | BV163: 0.03 | BW163: 0.03 | BX163: 0.03
A164: 2 | B164: 48 | F164: Cap Exp to Sales | I164: 0.4333333333 | J164: 0.4138421671 | K164: 0.4596189522 | L164: 0.3804654392 | M164: 0.2613280091 | N164: 0.2138375673 | O164: 0.1717583055 | P164: 0.1673071806 | Q164: 0.3451696931 | R164: 0.4103713236 | S164: 0.5056308304 | T164: 0.5852701373 | U164: 0.683293714 | V164: 0.8446181588 | W164: 0.5924646808 | X164: 0.5941907513 | Y164: 0.5736047031 | Z164: 0.4977529206 | AA164: 0.5420094299 | AB164: 0.6891393622 | AC164: 0.586255951 | AD164: 0.612189366 | AE164: 0.6938349625 | AF164: 0.6772092409 | AG164: 0.6456133998 | AH164: 0.5113933649 | AI164: 0.5033019216 | AJ164: 0.6459403524 | AK164: 0.6653892228 | AL164: 0.6927940214 | AM164: 0.8118953665 | AN164: 0.8323313207 | AO164: 0.6 | AP164: 0.6 | AQ164: 0.6 | AR164: 0.6 | AS164: 0.6 | AT164: 0.6 | AU164: 0.6 | AV164: 0.6 | AW164: 0.6 | AX164: 0.6 | AY164: 0.6 | AZ164: 0.6 | BA164: 0.6 | BB164: 0.6 | BC164: 0.6 | BD164: 0.6 | BE164: 0.6 | BF164: 0.6 | BG164: 0.6 | BH164: 0.6 | BI164: 0.6 | BJ164: 0.6 | BK164: 0.6 | BL164: 0.6 | BM164: 0.6 | BN164: 0.6 | BO164: 0.6 | BP164: 0.6 | BQ164: 0.6 | BR164: 0.6 | BS164: 0.6 | BT164: 0.6 | BU164: 0.6 | BV164: 0.6 | BW164: 0.6 | BX164: 0.6
A165: 3 | B165: 53 | F165: A/R to Revenues | I165: 0.25 | J165: 0.2774829006 | K165: 0.2395806776 | L165: 0.2289550172 | M165: 0.229371882 | N165: 0.2710522354 | O165: 0.2435822994 | P165: 0.2419982542 | Q165: 0.2431103723 | R165: 0.256732495 | S165: 0.228503494 | T165: 0.246129549 | U165: 0.2642001944 | V165: 0.2845471741 | W165: 0.2362125098 | X165: 0.2377734826 | Y165: 0.2407053781 | Z165: 0.2471463579 | AA165: 0.2442662845 | AB165: 0.2297828348 | AC165: 0.2250303591 | AD165: 0.2353468581 | AE165: 0.2842391911 | AF165: 0.2271055249 | AG165: 0.269894832 | AH165: 0.25 | AI165: 0.2603955763 | AJ165: 0.2415436706 | AK165: 0.2420828555 | AL165: 0.2127011319 | AM165: 0.2769327372 | AN165: 0.2916460084 | AO165: 0.2486891293 | AP165: 0.2486891293 | AQ165: 0.2486891293 | AR165: 0.2486891293 | AS165: 0.2486891293 | AT165: 0.2486891293 | AU165: 0.2486891293 | AV165: 0.2486891293 | AW165: 0.2486891293 | AX165: 0.2486891293 | AY165: 0.2486891293 | AZ165: 0.2486891293 | BA165: 0.2486891293 | BB165: 0.2486891293 | BC165: 0.2486891293 | BD165: 0.2486891293 | BE165: 0.2486891293 | BF165: 0.2486891293 | BG165: 0.2486891293 | BH165: 0.2486891293 | BI165: 0.2486891293 | BJ165: 0.2486891293 | BK165: 0.2486891293 | BL165: 0.2486891293 | BM165: 0.2486891293 | BN165: 0.2486891293 | BO165: 0.2486891293 | BP165: 0.2486891293 | BQ165: 0.2486891293 | BR165: 0.2486891293 | BS165: 0.2486891293 | BT165: 0.2486891293 | BU165: 0.2486891293 | BV165: 0.2486891293 | BW165: 0.2486891293 | BX165: 0.2486891293
A166: 4 | B166: 59 | F166: Tax and Depreciation | I166: 0 | J166: 0.1072488635 | K166: 0.09860761879 | L166: 0.07705511746 | M166: 0.08894432032 | N166: 0.1089507981 | O166: 0.09493790071 | P166: 0.09445220093 | Q166: 0.127577423 | R166: 0.1086904772 | S166: 0.118966457 | T166: 0.09793505289 | U166: 0.1023416205 | V166: 0.1176521709 | W166: 0.07228884343 | X166: 0.1070450747 | Y166: 0.1260949298 | Z166: 0.0970219441 | AA166: 0.1061534036 | AB166: 0.1088652122 | AC166: 0.08163034341 | AD166: 0.1056364591 | AE166: 0.1068003015 | AF166: 0.09588681172 | AG166: 0.08922624621 | AH166: 0.08781699388 | AI166: 0.09293963228 | AJ166: 0.1114467466 | AK166: 0.1066225497 | AL166: 0.08298801002 | AM166: 0.1084347468 | AN166: 0.1245121218 | AO166: 0.1245121218 | AP166: 0.1245121218 | AQ166: 0.1245121218 | AR166: 0.1245121218 | AS166: 0.1245121218 | AT166: 0.1245121218 | AU166: 0.1245121218 | AV166: 0.1245121218 | AW166: 0.1245121218 | AX166: 0.1245121218 | AY166: 0.1245121218 | AZ166: 0.1245121218 | BA166: 0.1245121218 | BB166: 0.1245121218 | BC166: 0.1245121218 | BD166: 0.1245121218 | BE166: 0.1245121218 | BF166: 0.1245121218 | BG166: 0.1245121218 | BH166: 0.1245121218 | BI166: 0.1245121218 | BJ166: 0.1245121218 | BK166: 0.1245121218 | BL166: 0.1245121218 | BM166: 0.1245121218 | BN166: 0.1245121218 | BO166: 0.1245121218 | BP166: 0.1245121218 | BQ166: 0.1245121218 | BR166: 0.1245121218 | BS166: 0.1245121218 | BT166: 0.1245121218 | BU166: 0.1245121218 | BV166: 0.1245121218 | BW166: 0.1245121218 | BX166: 0.1245121218
A167: 5 | B167: 65 | F167: Financing | I167: 0 | J167: 0.04790671682 | K167: 0.0497564144 | L167: 0.04180634592 | M167: 0.04231753985 | N167: 0.05191983112 | O167: 0.0449569405 | P167: 0.05219650404 | Q167: 0.05582889633 | R167: 0.05872942126 | S167: 0.05679638645 | T167: 0.05298825672 | U167: 0.04796092399 | V167: 0.05886089183 | W167: 0.03842029718 | X167: 0.05614113815 | Y167: 0.06227516496 | Z167: 0.04739377501 | AA167: 0.05407413059 | AB167: 0.05384664205 | AC167: 0.04022996546 | AD167: 0.05110448683 | AE167: 0.05457554338 | AF167: 0.04910281272 | AG167: 0.04660670574 | AH167: 0.04362103208 | AI167: 0.05016310435 | AJ167: 0.05236432222 | AK167: 0.05510937034 | AL167: 0.04406825668 | AM167: 0.05101348251 | AN167: 0.05918751072 | AO167: 0.03 | AP167: 0.03 | AQ167: 0.03 | AR167: 0.03 | AS167: 0.03 | AT167: 0.03 | AU167: 0.03 | AV167: 0.03 | AW167: 0.03 | AX167: 0.03 | AY167: 0.03 | AZ167: 0.03 | BA167: 0.03 | BB167: 0.03 | BC167: 0.03 | BD167: 0.03 | BE167: 0.03 | BF167: 0.03 | BG167: 0.03 | BH167: 0.03 | BI167: 0.03 | BJ167: 0.03 | BK167: 0.03 | BL167: 0.03 | BM167: 0.03 | BN167: 0.03 | BO167: 0.03 | BP167: 0.03 | BQ167: 0.03 | BR167: 0.03 | BS167: 0.03 | BT167: 0.03 | BU167: 0.03 | BV167: 0.03 | BW167: 0.03 | BX167: 0.03
A168: 6 | B168: 70 | F168: Interest Income Rate | I168: 0 | J168: 0.008331921014 | K168: 0.01228408361 | L168: 0.009998235344 | M168: 0.0108130846 | N168: 0.01084796824 | O168: 0.01021357764 | P168: 0.01055314216 | Q168: 0.007114262314 | R168: 0.008224088531 | S168: 0.008665456826 | T168: 0.008661384975 | U168: 0.01052955781 | V168: 0.01022982121 | W168: 0.01093922887 | X168: 0.01002343929 | Y168: 0.008383317139 | Z168: 0.0109326012 | AA168: 0.01028897996 | AB168: 0.009656242592 | AC168: 0.008305652766 | AD168: 0.01153484286 | AE168: 0.01095257296 | AF168: 0.01177498263 | AG168: 0.01255766917 | AH168: 0.005857749952 | AI168: 0.01047183954 | AJ168: 0.009602905047 | AK168: 0.01142673795 | AL168: 0.008276063031 | AM168: 0.01148222295 | AN168: 0.009997878817 | AO168: 0.01 | AP168: 0.01 | AQ168: 0.01 | AR168: 0.01 | AS168: 0.01 | AT168: 0.01 | AU168: 0.01 | AV168: 0.01 | AW168: 0.01 | AX168: 0.01 | AY168: 0.01 | AZ168: 0.01 | BA168: 0.01 | BB168: 0.01 | BC168: 0.01 | BD168: 0.01 | BE168: 0.01 | BF168: 0.01 | BG168: 0.01 | BH168: 0.01 | BI168: 0.01 | BJ168: 0.01 | BK168: 0.01 | BL168: 0.01 | BM168: 0.01 | BN168: 0.01 | BO168: 0.01 | BP168: 0.01 | BQ168: 0.01 | BR168: 0.01 | BS168: 0.01 | BT168: 0.01 | BU168: 0.01 | BV168: 0.01 | BW168: 0.01 | BX168: 0.01
G170: 3
F172: =INDEX(F163:F168,$G$170) -> A/R to Revenues | I172: =INDEX(I163:I168,$G$170) -> 0.25 | J172: =INDEX(J163:J168,$G$170) -> 0.2774829006 | K172: 0.2395806776 | L172: 0.2289550172 | M172: 0.229371882 | N172: 0.2710522354 | O172: 0.2435822994 | P172: 0.2419982542 | Q172: 0.2431103723 | R172: 0.256732495 | S172: 0.228503494 | T172: 0.246129549 | U172: 0.2642001944 | V172: 0.2845471741 | W172: 0.2362125098 | X172: 0.2377734826 | Y172: 0.2407053781 | Z172: 0.2471463579 | AA172: 0.2442662845 | AB172: 0.2297828348 | AC172: 0.2250303591 | AD172: 0.2353468581 | AE172: 0.2842391911 | AF172: 0.2271055249 | AG172: 0.269894832 | AH172: 0.25 | AI172: 0.2603955763 | AJ172: 0.2415436706 | AK172: 0.2420828555 | AL172: 0.2127011319 | AM172: 0.2769327372 | AN172: 0.2916460084 | AO172: 0.2486891293 | AP172: 0.2486891293 | AQ172: 0.2486891293 | AR172: 0.2486891293 | AS172: 0.2486891293 | AT172: 0.2486891293 | AU172: 0.2486891293 | AV172: 0.2486891293 | AW172: 0.2486891293 | AX172: 0.2486891293 | AY172: 0.2486891293 | AZ172: 0.2486891293 | BA172: 0.2486891293 | BB172: 0.2486891293 | BC172: 0.2486891293 | BD172: 0.2486891293 | BE172: 0.2486891293 | BF172: 0.2486891293 | BG172: 0.2486891293 | BH172: 0.2486891293 | BI172: 0.2486891293 | BJ172: 0.2486891293 | BK172: 0.2486891293 | BL172: 0.2486891293 | BM172: 0.2486891293 | BN172: 0.2486891293 | BO172: 0.2486891293 | BP172: 0.2486891293 | BQ172: 0.2486891293 | BR172: 0.2486891293 | BS172: 0.2486891293 | BT172: 0.2486891293 | BU172: 0.2486891293 | BV172: =INDEX(BV163:BV168,$G$170) -> 0.2486891293 | BW172: 0.2486891293 | BX172: 0.2486891293
F175: History | I175: =IF(I3,I172) -> 0.25 | J175: =IF(J3,J172) -> 0.2774829006 | K175: 0.2395806776 | L175: 0.2289550172 | M175: 0.229371882 | N175: 0.2710522354 | O175: 0.2435822994 | P175: 0.2419982542 | Q175: 0.2431103723 | R175: 0.256732495 | S175: 0.228503494 | T175: 0.246129549 | U175: 0.2642001944 | V175: 0.2845471741 | W175: 0.2362125098 | X175: 0.2377734826 | Y175: 0.2407053781 | Z175: 0.2471463579 | AA175: 0.2442662845 | AB175: 0.2297828348 | AC175: 0.2250303591 | AD175: 0.2353468581 | AE175: 0.2842391911 | AF175: 0.2271055249 | AG175: 0.269894832 | AH175: 0.25 | AI175: 0.2603955763 | AJ175: 0.2415436706 | AK175: 0.2420828555 | AL175: 0.2127011319 | AM175: 0.2769327372 | AN175: 0.2916460084 | AO175: FALSE | AP175: FALSE | AQ175: FALSE | AR175: FALSE | AS175: FALSE | AT175: FALSE | AU175: FALSE | AV175: FALSE | AW175: FALSE | AX175: FALSE | AY175: FALSE | AZ175: FALSE | BA175: FALSE | BB175: FALSE | BC175: FALSE | BD175: FALSE | BE175: FALSE | BF175: FALSE | BG175: FALSE | BH175: FALSE | BI175: FALSE | BJ175: FALSE | BK175: FALSE | BL175: FALSE | BM175: FALSE | BN175: FALSE | BO175: FALSE | BP175: FALSE | BQ175: FALSE | BR175: FALSE | BS175: FALSE | BT175: FALSE | BU175: FALSE | BV175: =IF(BV3,BV172) -> FALSE | BW175: FALSE | BX175: FALSE
F176: Projection | I176: =IF(NOT(I3),I172) -> FALSE | J176: =IF(NOT(J3),J172) -> FALSE | K176: FALSE | L176: FALSE | M176: FALSE | N176: FALSE | O176: FALSE | P176: FALSE | Q176: FALSE | R176: FALSE | S176: FALSE | T176: FALSE | U176: FALSE | V176: FALSE | W176: FALSE | X176: FALSE | Y176: FALSE | Z176: FALSE | AA176: FALSE | AB176: FALSE | AC176: FALSE | AD176: FALSE | AE176: FALSE | AF176: FALSE | AG176: FALSE | AH176: FALSE | AI176: FALSE | AJ176: FALSE | AK176: FALSE | AL176: FALSE | AM176: FALSE | AN176: FALSE | AO176: 0.2486891293 | AP176: 0.2486891293 | AQ176: 0.2486891293 | AR176: 0.2486891293 | AS176: 0.2486891293 | AT176: 0.2486891293 | AU176: 0.2486891293 | AV176: 0.2486891293 | AW176: 0.2486891293 | AX176: 0.2486891293 | AY176: 0.2486891293 | AZ176: 0.2486891293 | BA176: 0.2486891293 | BB176: 0.2486891293 | BC176: 0.2486891293 | BD176: 0.2486891293 | BE176: 0.2486891293 | BF176: 0.2486891293 | BG176: 0.2486891293 | BH176: 0.2486891293 | BI176: 0.2486891293 | BJ176: 0.2486891293 | BK176: 0.2486891293 | BL176: 0.2486891293 | BM176: 0.2486891293 | BN176: 0.2486891293 | BO176: 0.2486891293 | BP176: 0.2486891293 | BQ176: 0.2486891293 | BR176: 0.2486891293 | BS176: 0.2486891293 | BT176: 0.2486891293 | BU176: 0.2486891293 | BV176: =IF(NOT(BV3),BV172) -> 0.2486891293 | BW176: 0.2486891293 | BX176: 0.2486891293

Sheet Advertising
C2: High Quality Modelling, Finance and Energy Courses
C4: This page is my advertising and publicity - You can of course delete the page without affecting the model
C6: I have taught classes for many years and I believe I have learned from my mistakes and can offer high quality courses
C8: Here is my simple concept
D9: 1. Deliver the courses at a reasonable price -- I will do quite well if a lot of people attend and I will survive if course numbers are low
E10: USD 1,500 for courses in Europe
E11: USD 1,000 for courses in Africa and Latin America
D12: 2. Do not cancel the classes as long as one student has signed up (I take the risk of low numbers and not you)
D13: 3. Limit the size of the classes to 25 participants
D14: 4. Lunches are offered by not with a four course elaborate menu -- we assume that you are attending the course to learn and not to have a fancy lunch
D15: 5. Scolarships Avaiable
C17: Download Outlines at | I17: www.FinanceEnergyInstitiute.com
C18: Check for upcomming dates | I18: www.FinanceEnergyInstitiute.com
C20: Customised In-Company Courses
C22: I also offer courses tailored for single institutions (or combinations of institutions)
C23: Depending on various considerations my rate is USD 1,500 to USD 2,000 per day plus expenses
C25: Contact Details
D26: E-mail | I26: edwardbodmer@gmail.com
D27: Phone | I27: 001-630-886-2754
D29: Skype | I29: edward.bodmer
D30: Link to Book
